Cogmind - Beta 13 X1 @@@ ROGUE MODE // 2023.12.02 @ 21:38:57 Player: Terminus Result: Escaped singularity! Performance ------------- Evolutions (9) 4500 Regions Visited (36) 7200 Robots Destroyed (655) 3275 Value Destroyed (38070) 38070 Prototype IDs (291) 5820 Alien Tech Used (9) 1800 Bonus (55461) 55461 TOTAL SCORE: 116126 Bonus ------- High Alert Combat Kills 4500 Follower Combat Kills 1292 Network Hubs Disabled 400 Met Data Miner 300 Used Data Conduit 3000 Met Imprinter 300 Met Zhirov 300 Met Warlord at Base 500 MAIN.C Attacked Warlord 500 Warlord Defense Kills 748 Built Enhanced Grunts 300 Met R17 at Cetus 500 Met Warlord at Research 2000 Pursued by Intercept 2000 Destroyed MAIN.C Guards 500 Met MAIN.C 5000 Destroyed MAIN.C Shell 5000 Destroyed MAIN.C 10000 Met Architect 300 Destroyed A8 300 Destroyed A6 400 Destroyed Architect 15000 Win 3000 Friendly Fire -679 Cogmind --------- Core Integrity 680/1600 Matter 266/300 Energy 99/100 System Corruption 0% Temperature Cool (0) Movement Core (50) Location Near Former Tau Ceti IV Parts ------- > --- POWER (3) -------- (None) > --- PROPULSION (4) --- (None) > --- UTILITY (12) ----- (None) > --- WEAPON (6) ------- (None) > --- INVENTORY (5) ---- High-density Centrium Heavy Treads AEGIS Remote Shield Long-range Tractor Beam Compact HERF Cannon Peak State ------------ > --- POWER ------------ Zero-point Reactor Vortex Chain Reactor > --- PROPULSION ------- Experimental Biometal Heavy Treads High-density Centrium Heavy Treads > --- UTILITY ---------- Huge Storage Unit Experimental Targeting Computer Experimental Targeting Computer Experimental Core Analyzer Experimental Weapon Cycler Heavy Regenerative Plating AEGIS Remote Shield System Mapper System Mapper Quantum Router Long-range Tractor Beam > --- WEAPON ----------- Multirail Multirail Multirail Multirail Multirail Multirail > --- INVENTORY -------- Zero-point Reactor Zero-point Reactor Experimental Biometal Heavy Treads High-density Centrium Heavy Treads Experimental Energy Well Experimental Matter Compressor Experimental Matter Compressor Experimental Targeting Computer Advanced Kinecellerator Experimental Phase Shifter Graphene Brace Improved Focal Shield AEGIS Remote Shield AEGIS Remote Shield Long-range Tractor Beam Transdimensional Reconstructor Core Regenerator Subatomic Replicator Advanced Variable Charge Gun Compact HERF Cannon Helical Railgun Multirail Multirail [Rating: 262] Favorites ----------- Power Vortex Chain Reactor Engine Improved Ion Engine Power Core Neutrino Core Reactor Vortex Chain Reactor Propulsion Light Treads Treads Light Treads Wheel Compact Wheel Utility Huge Storage Unit Device Sensor Drone Bay Storage Huge Storage Unit Processor Experimental Targeting Computer Hackware System Mapper Protection Layered Medium Armor Plating Weapon Multirail Energy Gun Improved EM Shotgun Energy Cannon Heavy Phase Cannon Ballistic Gun Multirail Launcher Heavy Missile Launcher Special Weapon Plasma Cutter Impact Weapon Heavy Flail Slashing Weapon Great Axe Build | -11 -10 -10 -9 -9 -9 -8 -8 -8 -7 -7 -7 -7 -6 -6 -6 -6 -6 -5 -5 -5 -5 -5 -5 -4 -4 -4 -4 -3 -3 -3 -2 -2 -2 -1 -1 -1 ------- Run | Jun Mat Min Mat Min Exi Min Mat Sto Fac Low Low Dat Pro Fac Low Low Zio Pro Fac Ext Cet Arc Hub Fac Upp Upp War Pro Res Tes Res Qua Sec Acc Com Ac0 Slots Evolved 18 | . . . 2 . . . 2 . 2 . . . . 2 . . . . 2 . . . . 2 . . . . 2 . 2 . . 2 . . Power 2 | . . . . . . . . . . . . . . . . . . . 1 . . . . . . . . . 1 . . . . . . . Propulsion 2 | . . . . . . . . . 2 . . . . . . . . . . . . . . . . . . . . . . . . . . . Utility 10 | . . . 1 . . . 2 . . . . . . 1 . . . . 1 . . . . 2 . . . . 1 . 1 . . 1 . . Weapon 4 | . . . 1 . . . . . . . . . . 1 . . . . . . . . . . . . . . . . 1 . . 1 . . Parts Attached 696 | 6 16 3 26 2 27 11 16 9 42 5 8 15 4 15 7 15 28 15 44 9 33 3 . 23 . 2 13 13 2 39 12 40 68 45 58 22 Power 33 | 1 2 1 3 . 1 1 1 1 2 . . 1 . . 1 . . . 2 2 5 . . . . . . . 1 1 . 2 1 . 4 . Engine 11 | 1 2 1 3 . 1 . . 1 2 . . . . . . . . . . . . . . . . . . . . . . . . . . . Core 8 | . . . . . . 1 1 . . . . . . . . . . . 2 2 2 . . . . . . . . . . . . . . . Reactor 14 | . . . . . . . . . . . . 1 . . 1 . . . . . 3 . . . . . . . 1 1 . 2 1 . 4 . Propulsion 59 | 2 4 1 6 . 8 3 4 1 7 . . 1 . . 2 1 1 . 2 . 6 . . 1 . . . . . 1 2 2 1 . 3 . Treads 46 | 1 1 1 3 . 4 2 3 1 7 . . 1 . . 2 1 1 . 2 . 6 . . 1 . . . . . 1 2 2 1 . 3 . Leg . | . . . . . . . . . . . . . . . . . . . . . . . . . . . . . . . . . . . . . Wheel 13 | 1 3 . 3 . 4 1 1 . . . . . . . . . . . . . . . . . . . . . . . . . . . . . Hover . | . . . . . . . . . . . . . . . . . . . . . . . . . . . . . . . . . . . . . Flight . | . . . . . . . . . . . . . . . . . . . . . . . . . . . . . . . . . . . . . Utility 389 | 1 6 1 6 2 9 4 6 3 24 1 4 6 2 9 4 9 5 11 32 5 13 3 . 19 . 2 8 13 1 28 4 30 52 33 27 6 Device 286 | . 3 . 1 1 3 3 1 . 17 1 2 2 2 5 2 5 2 6 21 3 7 3 . 13 . 2 6 13 1 24 3 25 49 30 24 6 Storage 10 | 1 3 1 1 . . . . . . . . . . 1 . . . . 1 . . . . . . . . . . . . 1 . . 1 . Processor 14 | . . . . . . . 2 . . . . . . . . 1 . 1 1 . 1 . . 2 . . 1 . . 1 . . 1 1 2 . Hackware 6 | . . . . . . . . 1 . . . . . 2 . . . . . . 2 . . . . . . . . . . . . 1 . . Protection 73 | . . . 4 1 6 1 3 2 7 . 2 4 . 1 2 3 3 4 9 2 3 . . 4 . . 1 . . 3 1 4 2 1 . . Artifact . | . . . . . . . . . . . . . . . . . . . . . . . . . . . . . . . . . . . . . Weapon 215 | 2 4 . 11 . 9 3 5 4 9 4 4 7 2 6 . 5 22 4 8 2 9 . . 3 . . 5 . . 9 6 6 14 12 24 16 Energy Gun 25 | . 3 . 10 . . . . 1 . . . . . . . . . . . . . . . 1 . . . . . . 1 . 1 3 2 3 Energy Cannon 13 | . . . . . . . . . . . . . . . . . . . 1 . . . . . . . . . . . . 2 2 . 4 4 Ballistic Gun 150 | 2 1 . 1 . 3 2 5 2 5 2 3 5 1 4 . 2 21 2 7 2 9 . . 2 . . 4 . . 9 5 4 11 9 18 9 Ballistic Cannon . | . . . . . . . . . . . . . . . . . . . . . . . . . . . . . . . . . . . . . Launcher 9 | . . . . . 1 1 . 1 1 1 . . 1 . . 1 . 1 . . . . . . . . 1 . . . . . . . . . Special Weapon 7 | . . . . . 5 . . . . . . 1 . . . . 1 . . . . . . . . . . . . . . . . . . . Impact Weapon 1 | . . . . . . . . . 1 . . . . . . . . . . . . . . . . . . . . . . . . . . . Slashing Weapon 10 | . . . . . . . . . 2 1 1 1 . 2 . 2 . 1 . . . . . . . . . . . . . . . . . . Piercing Weapon . | . . . . . . . . . . . . . . . . . . . . . . . . . . . . . . . . . . . . . Special Melee Weapon . | . . . . . . . . . . . . . . . . . . . . . . . . . . . . . . . . . . . . . Unidentified Prototypes 21 | . . . 3 1 3 . 1 1 . . . . . . . . 1 . . . . . . . . . 1 . . 2 . 2 5 . 1 . Corrupted Parts 2 | . . . . . . . . . . . . . . . . . . . . . 2 . . . . . . . . . . . . . . . System Corruption 19 | . . . . . . . . . . . . . . . . . . . . . 19 . . . . . . . . . . . . . . . Parts Lost 49 | . 2 . 2 . 12 2 . . . . . 2 . . 3 3 . 2 . . 5 . . . . . . . . 1 . . 1 . 3 11 Power 4 | . . . . . 1 1 . . . . . . . . 1 . . . . . 1 . . . . . . . . . . . . . . . Propulsion 11 | . 2 . 1 . 2 . . . . . . 1 . . 2 2 . . . . 1 . . . . . . . . . . . . . . . Utility 18 | . . . 1 . 3 1 . . . . . 1 . . . 1 . 2 . . 2 . . . . . . . . 1 . . . . 1 5 Weapon 16 | . . . . . 6 . . . . . . . . . . . . . . . 1 . . . . . . . . . . . 1 . 2 6 Highest Loss Streak 6 | . 1 . 1 . 6 1 . . . . . 2 . . 2 3 . 1 . . 3 . . . . . . . . 1 . . 1 . 1 4 To Critical Strikes 5 | . . . . . 4 . . . . . . . . . . . . . . . . . . . . . . . . . . . 1 . . . Average Slot Usage (%) 93 | . 99 100 99 100 99 99 99 99 99 100 100 99 100 99 99 94 98 99 99 99 90 88 88 88 89 89 89 89 84 84 82 81 81 83 83 82 Engine 2 | . 14 14 11 11 11 5 . 7 7 7 7 5 . . . . . . . . . . . . . . . . . . . . . . . . Reactor 4 | . . . . . . . . . . . . 1 7 6 6 6 6 6 5 1 2 11 11 10 10 10 10 10 9 9 8 8 7 8 7 7 Treads 15 | . 14 14 11 11 12 11 9 9 30 30 30 30 30 26 25 21 24 26 23 23 13 11 11 10 10 10 10 10 9 8 8 8 7 8 8 7 Wheel 2 | . 13 14 11 11 9 10 9 9 . . . . . . . . . . . . . . . . . . . . . . . . . . . . Device 11 | . 13 14 10 11 4 8 11 9 6 7 9 2 15 7 5 5 5 5 10 11 6 11 11 14 15 15 14 15 18 16 13 12 12 11 20 19 Storage 6 | . 14 14 10 11 11 11 9 9 7 7 7 7 7 6 6 6 6 6 5 5 5 5 5 5 5 5 5 5 4 4 4 4 4 4 4 3 Processor 7 | . . . . . . . 9 9 7 7 7 7 7 6 6 6 6 5 5 5 9 5 5 10 10 10 10 10 9 11 13 13 13 11 13 15 Hackware 7 | . . . . . . . . 5 7 7 7 5 . 11 13 13 13 13 11 11 11 11 11 10 10 10 10 10 9 9 8 8 8 11 1 . Protection 6 | . . . 10 11 17 13 14 11 7 7 5 13 7 6 6 6 6 6 5 4 5 5 5 5 5 5 5 5 4 4 4 4 4 4 4 3 Energy Gun 3 | . 22 28 32 33 9 . . . . . . . . . . . . . . . . . . 1 . . . . . . . . . . . 1 Ballistic Gun 20 | . 5 . . . 17 33 27 26 22 13 20 19 23 22 26 23 26 25 22 22 22 23 23 19 21 21 20 21 19 18 20 20 20 23 23 22 Naked Turns 6 | . . . . . . . . . . . . . . . . . . . . . . . . . . . . . . . . . . . . 6 Heaviest Build 224 | 13 52 92 101 101 113 122 113 115 133 138 139 130 129 134 139 133 136 139 166 160 163 177 177 183 177 177 186 182 198 204 210 213 219 224 221 224 Greatest Support 175 | 16 20 16 16 16 40 16 16 16 80 80 80 80 80 80 94 94 97 97 114 114 160 160 160 160 160 160 160 160 160 160 165 175 175 175 175 165 Greatest Overweight (x) 7 | 4 3 5 6 6 7 7 7 7 1 1 1 1 1 1 1 2 1 1 1 1 1 1 1 1 1 1 1 1 1 1 1 1 1 1 1 1 Average Overweight (x) 2 | . 1 3 5 6 6 6 6 6 1 1 1 1 1 1 1 1 1 1 1 1 . 1 1 1 1 1 1 1 1 1 1 1 1 1 1 . Largest Inventory Capacity 25 | 8 20 25 25 25 25 25 25 25 25 25 25 25 25 25 25 25 25 25 25 25 25 25 25 25 25 25 25 25 25 25 25 25 25 25 25 25 Average Capacity 24 | 7 13 22 24 25 25 25 25 25 25 25 25 25 25 25 25 25 25 25 25 25 25 25 25 25 25 25 25 25 25 25 25 25 25 25 25 24 Most Carried 25 | 2 20 24 25 25 25 25 25 25 25 25 25 25 25 25 25 25 25 25 25 25 25 25 25 25 25 25 25 25 25 25 25 25 25 25 25 25 Average Carried 23 | 1 12 21 24 24 19 22 24 24 24 25 25 24 24 23 23 24 24 24 24 24 24 25 25 24 25 24 24 25 23 24 24 24 24 23 24 23 Final Capacity 25 | 8 20 25 25 25 25 25 25 25 25 25 25 25 25 25 25 25 25 25 25 25 25 25 25 25 25 25 25 25 25 25 25 25 25 25 25 5 Final Carried 25 | 2 20 24 25 25 22 25 25 25 25 25 25 25 25 25 25 25 25 24 25 25 25 25 25 25 25 25 25 25 24 24 25 25 24 25 25 5 Class Distribution -------------------- 33% | Scavenger-Gunner 13% | Hacker-Gunner 12% | Scavenger-Executioner 11% | Tank 8% | Scavenger-Mutant 7% | Hacker-Tank 6% | Mutant Dominant Class ---------------- Mutant | -10/Materials Mutant | -10/Mines Tank | -9/Materials Tank | -9/Mines Tank | -9/Exiles Tank | -8/Mines Tank | -8/Materials Commander-Gunner | -8/Storage Scavenger-Gunner | -7/Factory Scavenger-Mutant | -7/Lower Caves Scavenger-Mutant | -7/Lower Caves Scavenger-Mutant | -7/Data Miner Scavenger-Gunner | -6/Proximity Caves Hacker-Mutant | -6/Factory Hacker-Gunner | -6/Lower Caves Hacker-Gunner | -6/Lower Caves Hacker-Gunner | -6/Zion Hacker-Gunner | -5/Proximity Caves Hacker-Tank | -5/Factory Hacker-Tank | -5/Extension Hacker-Tank | -5/Cetus Scavenger-Gunner | -5/Archives Scavenger-Tank | -5/Hub_04(d) Scavenger-Gunner | -4/Factory Scavenger-Gunner | -4/Upper Caves Scavenger-Gunner | -4/Upper Caves Scavenger-Gunner | -4/Warlord Scavenger-Gunner | -3/Proximity Caves Scavenger-Gunner | -3/Research Scavenger-Gunner | -3/Testing Scavenger-Gunner | -2/Research Scavenger-Gunner | -2/Quarantine Scavenger-Gunner | -2/Section 7 Scavenger-Executioner | -1/Access Scavenger-Executioner | -1/Command Scavenger-Executioner | -1/Access_0 Resources | -11 -10 -10 -9 -9 -9 -8 -8 -8 -7 -7 -7 -7 -6 -6 -6 -6 -6 -5 -5 -5 -5 -5 -5 -4 -4 -4 -4 -3 -3 -3 -2 -2 -2 -1 -1 -1 ----------- Run | Jun Mat Min Mat Min Exi Min Mat Sto Fac Low Low Dat Pro Fac Low Low Zio Pro Fac Ext Cet Arc Hub Fac Upp Upp War Pro Res Tes Res Qua Sec Acc Com Ac0 Matter Collected 38379 | 227 344 30 255 20 881 337 647 1136 1165 69 480 508 324 424 683 513 745 768 1413 1088 1161 38 178 630 161 191 223 814 218 1765 695 1695 6325 3366 4965 3897 Remotely 16954 | . . . . . . . . . . . 137 . . 162 . 147 . . 606 306 212 . . 424 . . . 686 . 953 273 1087 3828 1628 4598 1907 Salvage Created 44453 | . 1003 62 2101 127 539 443 957 1266 1271 53 320 453 176 518 597 497 395 662 1549 1008 1040 38 101 1156 190 183 268 1449 564 1923 1139 2326 7212 4713 5851 2303 Parts 2463 | . 62 11 127 3 78 22 74 76 81 3 19 21 14 33 15 10 14 34 88 37 52 2 8 63 7 4 13 60 27 133 52 136 437 288 230 129 Haulers Intercepted 26 | . 2 . 5 . . . 5 5 . . . . . . . . . . 1 . . . . 1 . . . . . 1 2 . . 4 . . Recyclers Shooed 8 | . 2 1 . . . 1 . . 3 . . . . . . . . . 1 . . . . . . . . . . . . . . . . . Parts Field Recycled . | . . . . . . . . . . . . . . . . . . . . . . . . . . . . . . . . . . . . . Retrieved Matter . | . . . . . . . . . . . . . . . . . . . . . . . . . . . . . . . . . . . . . Parts Self-Destructed 156 | . . . . . . . . . . 3 11 . 12 . 14 9 6 34 . . . . . . 7 . . 60 . . . . . . . . Prevented . | . . . . . . . . . . . . . . . . . . . . . . . . . . . . . . . . . . . . . Kills | -11 -10 -10 -9 -9 -9 -8 -8 -8 -7 -7 -7 -7 -6 -6 -6 -6 -6 -5 -5 -5 -5 -5 -5 -4 -4 -4 -4 -3 -3 -3 -2 -2 -2 -1 -1 -1 ------- Run | Jun Mat Min Mat Min Exi Min Mat Sto Fac Low Low Dat Pro Fac Low Low Zio Pro Fac Ext Cet Arc Hub Fac Upp Upp War Pro Res Tes Res Qua Sec Acc Com Ac0 Combat Hostiles Destroyed 516 | . 17 . 36 . 4 10 14 19 21 4 3 4 6 3 6 11 2 13 22 10 16 . 1 14 3 . 4 27 6 22 12 24 79 47 33 23 Guns 490 | . 17 . 30 . 2 7 14 19 21 . 3 4 3 3 6 8 2 12 22 9 16 . 1 14 2 . 4 27 6 22 12 23 79 47 33 22 AOE 23 | . . . 6 . 2 3 . . . 4 . . 3 . . 3 . 1 . 1 . . . . . . . . . . . . . . . . Classes Destroyed 32 | . 8 . 2 . 3 2 . . 3 . 2 . 2 . . 1 1 . . . . . . . . . 1 1 . . 2 2 2 . . . Worker 20 | . 2 2 1 . . . 1 2 4 . . . . 1 . . . . 3 . . . . . . . . . . 2 . . . 2 . . Builder 18 | . 2 1 2 . . . . . 2 . . . . 1 . . . . 3 1 . . . . . . . . . 1 . . 4 1 . . Tunneler 5 | . 1 1 1 . . . 1 . . . . . . . . . . . . . . . . . . . . . . . . . . 1 . . Hauler 26 | . 2 . 5 . . . 5 5 . . . . . . . . . . 1 . . . . 1 . . . . . 1 2 . . 4 . . Recycler 21 | . 3 . 1 1 . . . 2 . . . . . 1 . . . . 2 2 . . . . . . . . 1 . . . . 2 6 . Minesweeper 1 | . . . . . . . . . . . 1 . . . . . . . . . . . . . . . . . . . . . . . . . Mechanic 2 | . . . . . . . . . . . . . . . . . . . . . . . . . . . . . . . . . 1 . 1 . Operator 6 | . 1 . . . . . . 2 2 . . . . . . . . . . . . . 1 . . . . . . . . . . . . . Drone 6 | . . . . . . . . . . . . . 2 . . . . 2 . 1 . . . . . . . . . . . . 1 . . . Turret 1 | . . . . . 1 . . . . . . . . . . . . . . . . . . . . . . . . . . . . . . . Watcher 35 | . 3 . 2 . . . 4 1 2 . . . . 4 . . . . 2 . 2 . . 2 . . . . . 1 . 2 5 4 1 . Swarmer 81 | . . . 3 . . 3 6 6 . 4 . . 3 . . . . . 11 1 5 . . . . . . 14 . . 2 . 9 9 5 . Grunt 150 | . 17 . 25 . . 5 2 5 9 . 1 . . . 3 10 . 6 . 4 3 . . 3 . . 2 7 . 4 4 5 27 4 4 . Brawler 7 | . . . . . . . . . . . . . . . . 1 . 1 . 1 . . . . . . . 2 . . . . . 2 . . Duelist 11 | . . . . . . 1 . . . . . . . . 1 . . . . 1 1 . . . . . . 2 . . . . 2 3 . . Protector 3 | . . . . . . . . . . . . . . . . . . . . . . . . . . . . 1 . . . . 2 . . . Researcher 2 | . . . . . . . . . . . . . . . . . . . . . . . . . . . . . . . . . 2 . . . Sentry 41 | . . . 8 . . . 4 8 2 . . . . 2 1 . . . 3 2 . . 1 . 1 . . 1 2 . . . 3 2 1 . Demolisher 1 | . . . . . . . . . . . . . . . . . . . . . . . . . . . . . . . 1 . . . . . Specialist 4 | . . . . . . . . . 2 . . . . . . . . . . . . . . 2 . . . . . . . . . . . . Hunter 45 | . . . . . . 1 2 . 1 . 2 . . 1 1 . . 4 6 . . . . 4 . . . . 2 2 . 2 8 6 3 . Programmer 81 | . . . . . . . . . 5 . . . . . . . . . 2 . . . . 4 2 . . . 2 14 1 11 14 15 11 . Heavy 6 | . . . . . . . . . 2 . . . . . . . . . . . . . . 1 . . . . . . . . 2 . 1 . Behemoth 6 | . . . . . . . . . . . . . 1 . . . . . . 1 . . . . . . . . . . . . 1 2 1 . Cetus Guard 7 | . . . . . . . . . . . . . . . . . . . . . 7 . . . . . . . . . . . . . . . S7 Guard 3 | . . . . . . . . . . . . . . . . . . . . . . . . . . . . . . . . . 3 . . . M Guard 2 | . . . . . . . . . . . . . . . . . . . . . . . . . . . . . . . . . . . 2 . Enhanced Grunt 10 | . . . . . . . . . . . . 4 . . . . . . . . . . . . . . . . . . . . . . . 6 Enhanced Hunter 5 | . . . . . . . . . . . . . . . . . . . . . . . . . . . . . . . . . . . . 5 Enhanced Programmer 9 | . . . . . . . . . . . . . . . . . . . . . . . . . . . . . . . . . . . . 9 Tracker 7 | . . . . . . . . . . . . . . . . . . . . . . . . . . . . . . 1 . 2 2 2 . . Combat Programmer 9 | . . . . . . . . . . . . . . . . . . . . . . . . . . . . . . 1 . 2 2 2 2 . Striker 3 | . . . . . . . . . . . . . . . . . . . . . . . . . . . . . . . 3 . . . . . Executioner 5 | . . . . . . . . . . . . . . . . . . . . . . . . . . . 2 . . . 1 . 2 . . . Alpha 7 4 | . . . . . . . . . . . . . . . . . . . . . . . . . . . . . . . . 1 2 . 1 . Fortress 1 | . . . . . . . . . . . . . . . . . . . . . . . . . . . . . . . . 1 . . . . Zionite 9 | . . . . . 7 . . . . . . . . . . . 2 . . . . . . . . . . . . . . . . . . . Packrat 3 | . . . . . . . . . . . . . . . 3 . . . . . . . . . . . . . . . . . . . . . Samaritan 3 | . . . . . . . . . . . 2 . 1 . . . . . . . . . . . . . . . . . . . . . . . Tinkerer 1 | . . . . . . . . . . . . . . . . . 1 . . . . . . . . . . . . . . . . . . . Assembled 4 | . . . . . 4 . . . . . . . . . . . . . . . . . . . . . . . . . . . . . . . Savage 1 | . . . . . . . . . . . . . . . . . . . . 1 . . . . . . . . . . . . . . . . Best Kill Streak 15 | . 5 2 5 1 4 3 8 5 11 4 2 4 3 4 4 7 1 3 9 3 5 . 1 3 1 . 3 8 2 4 9 4 15 6 5 5 Combat Bots Only 15 | . 3 . 4 . 4 3 3 4 9 4 1 4 3 1 4 7 1 3 7 3 5 . 1 3 1 . 3 8 2 3 9 4 15 5 5 5 Max Kills in Single Turn 3 | . 2 1 2 1 2 2 2 2 1 3 1 2 2 1 1 1 1 2 2 3 2 . 1 2 1 . 2 3 2 2 3 1 3 3 2 1 Gunslinging 2 | . . . 1 . . . 1 1 . . . 1 . . . . . 1 1 1 1 . . 1 . . . 2 . . 1 . 2 2 1 . Exploded 3 | . . . 2 . 2 2 . . . 3 . . 2 . . 1 . 1 . 1 . . . . . . . . . . . . . . . . Melee . | . . . . . . . . . . . . . . . . . . . . . . . . . . . . . . . . . . . . . Uniques/NPCs Destroyed 11 | . . . . . 3 . . . . . . 1 . . . . 2 . . . . . . . . . . . . . . . . . 2 3 EX-DEC (-9/Exiles) EX-HEX (-9/Exiles) EX-BIN (-9/Exiles) Data Miner (-7/Data Miner) Imprinter (-6/Zion) ME-RLN (-6/Zion) MAIN.C Shell (-1/Command) MAIN.C (-1/Command) A8 (-1/Access_0) A6 (-1/Access_0) Architect (-1/Access_0) Combat | -11 -10 -10 -9 -9 -9 -8 -8 -8 -7 -7 -7 -7 -6 -6 -6 -6 -6 -5 -5 -5 -5 -5 -5 -4 -4 -4 -4 -3 -3 -3 -2 -2 -2 -1 -1 -1 -------- Run | Jun Mat Min Mat Min Exi Min Mat Sto Fac Low Low Dat Pro Fac Low Low Zio Pro Fac Ext Cet Arc Hub Fac Upp Upp War Pro Res Tes Res Qua Sec Acc Com Ac0 Damage Taken 27794 | . 648 . 726 20 1184 405 321 376 907 63 143 669 237 205 602 1106 308 798 863 300 2045 . 306 317 69 . 211 505 86 854 399 870 4085 897 2687 4582 Core 2168 | . 103 . 158 10 133 78 38 50 71 9 11 . . 22 57 83 23 33 54 18 129 . 34 16 10 . 6 10 . 12 . 26 244 50 135 545 Absorbed by Shields 16425 | . . . . . . . . . . . . . . . . . . . 772 309 197 . 321 353 72 . 218 533 90 816 386 882 4115 912 2189 4260 Reduced by Siege Mode 1094 | . . . . . . . . . . . . . . . . . . . . . 99 . . 22 . . 20 53 . 58 31 60 299 80 166 206 Ignored by Resistances 3557 | . . . . . . . 38 42 121 31 69 82 . . 108 . 111 183 461 . . . . 180 . . . . . 63 . 136 220 527 795 390 Regen/Repaired (Parts) 8085 | . . . 324 . . . . 218 . . . . . . . . 1667 . . 119 . . . 420 . . 57 . . 388 . 458 2725 229 806 674 Core Remaining (%) 71 | 100 . 58 . . . 5 . 84 . . . . 87 . . . . 74 . . . . 76 . . . . 96 . 99 . . 66 . . 42 Volleys Fired 1535 | . 86 10 58 2 78 17 44 68 73 9 30 15 17 28 20 25 31 33 62 40 38 1 6 35 9 7 8 38 12 68 30 54 164 110 111 98 Largest 6 | . 2 2 3 3 3 3 3 3 3 1 3 2 3 4 4 4 4 4 4 4 4 4 4 4 4 4 4 4 4 4 5 5 5 6 6 6 Hottest 340 | . 130 130 195 135 135 83 75 75 75 39 85 60 81 109 109 109 110 109 114 114 136 140 140 140 140 140 146 146 146 149 240 197 211 256 270 340 Shots Fired 5760 | . 172 20 174 6 184 47 132 202 207 9 58 29 47 70 80 77 108 120 216 157 144 4 23 119 36 29 20 152 48 273 102 252 799 525 585 534 Gun 5640 | . 172 20 174 6 118 45 132 201 206 7 58 28 45 70 80 70 108 118 209 157 144 4 23 119 36 29 20 152 48 273 102 248 797 525 572 524 Cannon 36 | . . . . . . . . . . . . . . . . . . . 7 . . . . . . . . . . . . 4 2 . 13 10 Launcher 18 | . . . . . 1 2 . 1 1 2 . . 2 . . 7 . 2 . . . . . . . . . . . . . . . . . . Special 66 | . . . . . 65 . . . . . . 1 . . . . . . . . . . . . . . . . . . . . . . . . Kinetic 5230 | . 73 . . . 110 45 132 201 206 7 58 28 45 70 80 70 108 118 209 157 144 4 23 112 36 29 20 152 48 273 90 248 796 498 569 471 Thermal 268 | . 99 20 27 . . . . . . . . . . . . . . . 7 . . . . 7 . . . . . . 12 4 3 27 3 59 Explosive 18 | . . . . . 1 2 . 1 1 2 . . 2 . . 7 . 2 . . . . . . . . . . . . . . . . . . Electromagnetic 178 | . . . 147 6 8 . . . . . . . . . . . . . . . . . . . . . . . . . . . . . 13 4 Impact 65 | . . . . . 65 . . . . . . . . . . . . . . . . . . . . . . . . . . . . . . . Robot Hit Streak 104 | . 16 4 29 11 11 13 16 20 16 . 26 12 21 29 24 19 22 24 28 27 38 40 43 31 44 5 13 26 19 27 27 61 92 98 68 104 Robot Miss Streak 16 | . 16 6 5 . 6 2 3 4 6 . 1 4 6 2 2 2 3 7 3 3 5 . 2 1 1 . 1 2 2 3 1 3 6 5 5 5 Penetration Max 2 | . . . . . 1 2 . . . . . . . 1 1 1 . 1 1 1 1 . . 1 . 1 1 2 1 . 2 1 2 1 2 . Secondary Targets 103 | . 3 . 1 . . . 2 1 2 . . 1 . . . 3 . 3 4 4 3 . . 4 . . . 9 . 3 7 1 28 11 5 8 Max Gunslinging Chain 2 | . 1 . 1 . . . 1 1 1 . . 1 . . . 1 . 1 1 2 2 . . 1 . . . 2 . 1 1 1 2 2 2 1 Shots Hit Robots 3974 | . 135 19 133 3 117 34 84 111 154 . 25 22 34 33 55 60 69 82 150 123 105 2 16 69 17 5 13 84 29 163 60 172 547 360 425 464 Core Hits 2438 | . 109 18 115 2 32 16 40 39 65 4 14 8 13 18 22 26 18 35 64 46 42 2 3 37 5 4 8 55 14 66 29 84 376 193 384 432 Critical Kills 67 | . . . . . 8 5 . 1 . . 2 4 . 1 . . . . 2 . 4 . 1 6 . 2 . 5 3 5 4 3 5 4 . 2 Critical Parts Destroyed 138 | . 1 . . . 12 11 2 1 . . 7 7 . . 1 1 7 2 5 3 6 . 2 6 4 . 1 3 . 9 5 6 15 8 5 8 Critical Strikes 233 | . 1 . . . 29 16 2 2 . . 9 12 . 1 1 1 7 2 7 4 11 . 3 12 4 2 1 10 4 14 9 10 25 13 11 10 Meltdown 1 | . . . . . . . . . . . . . . . . . . . . . . . . . . . . . . . . 1 . . . . Destroy 225 | . 1 . . . 22 16 2 2 . . 9 12 . 1 1 1 7 2 7 4 11 . 3 12 4 2 1 10 4 14 9 9 25 13 11 10 Sever 7 | . . . . . 7 . . . . . . . . . . . . . . . . . . . . . . . . . . . . . . . Melee Attacks 32 | . . . . . . . . . 6 1 4 10 . 6 . 4 . 1 . . . . . . . . . . . . . . . . . . Impact 3 | . . . . . . . . . 3 . . . . . . . . . . . . . . . . . . . . . . . . . . . Slashing 29 | . . . . . . . . . 3 1 4 10 . 6 . 4 . 1 . . . . . . . . . . . . . . . . . . Piercing . | . . . . . . . . . . . . . . . . . . . . . . . . . . . . . . . . . . . . . Sneak Attacks 2 | . . . . . . . . . . . . 1 . . . 1 . . . . . . . . . . . . . . . . . . . . Combat Hostiles . | . . . . . . . . . . . . . . . . . . . . . . . . . . . . . . . . . . . . . Follow-up Attacks . | . . . . . . . . . . . . . . . . . . . . . . . . . . . . . . . . . . . . . Damage Inflicted 114839 | 3 1611 215 2880 83 1894 899 1436 1934 2982 269 431 462 863 714 1021 1976 1134 1730 3353 3375 3101 58 521 2299 568 210 459 3460 827 4922 2067 4841 17911 11111 18204 15015 Guns 110292 | . 1611 215 2230 47 1258 690 1436 1934 2876 . 431 369 642 714 1021 1119 1134 1512 3136 3034 3101 58 469 2299 568 197 435 3460 827 4922 2067 4794 17875 11111 18065 14635 Cannons 512 | . . . . . . . . . . . . . . . . . . . . . . . . . . . . . . . . 47 . . 85 380 Explosions 2965 | . . . 650 36 77 209 . . . 269 . . 221 . . 794 . 218 181 310 . . . . . . . . . . . . . . . . Melee 156 | . . . . . . . . . . . . 93 . . . 63 . . . . . . . . . . . . . . . . . . . . Ramming 355 | 3 . . . . . . . . 106 . . . . . . . . . 36 31 . . 52 . . 13 24 . . . . . 36 . 54 . Kinetic 105066 | . 532 . . . 1201 690 1436 1934 2876 . 431 369 642 714 1021 1119 1134 1512 3136 3034 3101 58 469 2299 568 197 435 3460 827 4922 2067 4794 17875 11111 18065 13037 Thermal 4720 | . 1079 215 979 36 . . . . . . . . . . . . . . 181 310 . . . . . . . . . . . 47 . . . 1873 Explosive 1788 | . . . . . 77 209 . . . 269 . . 221 . . 794 . 218 . . . . . . . . . . . . . . . . . . Electromagnetic 2195 | . . . 1901 47 57 . . . . . . . . . . . . . . . . . . . . . . . . . . . . . 85 105 Impact 559 | . . . . . 559 . . . . . . . . . . . . . . . . . . . . . . . . . . . . . . . Slashing 156 | . . . . . . . . . . . . 93 . . . 63 . . . . . . . . . . . . . . . . . . . . Piercing . | . . . . . . . . . . . . . . . . . . . . . . . . . . . . . . . . . . . . . Highest Corruption 19 | . . . . . . . . . 1 . . . . . . . 1 6 . . 19 19 14 . 2 2 2 . . 10 1 10 10 . . . Average Corruption 5 | . . . . . . . . . 1 . . . . . . . 1 3 . . 14 16 13 . 1 2 2 . . 4 1 1 10 . . . Corruption Purged 7 | . . . . . . . . . 1 . . . . . . . . . . . . 6 . . . . . . . . . . . . . . Corruption Blocked . | . . . . . . . . . . . . . . . . . . . . . . . . . . . . . . . . . . . . . Effects 242 | . . . . . . . . . 3 . . . . . . . 5 31 . . 21 16 11 . 4 11 1 . . 19 1 25 94 . . . Message Errors 58 | . . . . . . . . . 1 . . . . . . . 1 9 . . 4 6 1 . . 3 . . . 4 1 6 22 . . . Matter Fused 52 | . . . . . . . . . . . . . . . . . 2 6 . . 4 4 3 . 1 2 1 . . 5 . 6 18 . . . Heat Flow Errors 24 | . . . . . . . . . 1 . . . . . . . 1 4 . . . 3 1 . . 3 . . . 2 . 1 8 . . . Energy Discharges 31 | . . . . . . . . . . . . . . . . . . 4 . . 5 1 1 . 1 . . . . 3 . 5 11 . . . Parts Rejected 3 | . . . . . . . . . . . . . . . . . . . . . 1 . . . . . . . . . . . 2 . . . Parts Fused 4 | . . . . . . . . . . . . . . . . . . . . . . . 1 . 1 1 . . . . . . 1 . . . Data Loss (minor) 30 | . . . . . . . . . 1 . . . . . . . . 5 . . 4 1 1 . . 1 . . . . . 3 14 . . . Data Loss (major) 13 | . . . . . . . . . . . . . . . . . 1 1 . . . 1 2 . 1 . . . . 1 . 1 5 . . . Misfires 7 | . . . . . . . . . . . . . . . . . . 1 . . 1 . . . . 1 . . . 2 . . 2 . . . Alerts 3 | . . . . . . . . . . . . . . . . . . . . . . . . . . . . . . 1 . 1 1 . . . Weapon Failures 17 | . . . . . . . . . . . . . . . . . . 1 . . 2 . 1 . . . . . . 1 . 2 10 . . . Overload Shots 8 | . . . . . . . . . . . . . . . . . . . . . . . . . . . . . . . 5 . . . 3 . Effects 1 | . . . . . . . . . . . . . . . . . . . . . . . . . . . . . . . 1 . . . . . Short Circuit 1 | . . . . . . . . . . . . . . . . . . . . . . . . . . . . . . . 1 . . . . . Overflow Damage 388 | . . . . . 3 . . . 5 26 . 33 37 . . 119 . . 87 10 . . 6 . . 6 . . . . . . 1 . 29 26 Projectiles 29 | . . . . . 3 . . . . . . . . . . . . . . . . . . . . . . . . . . . . . . 26 Explosions 246 | . . . . . . . . . . 26 . . 37 . . 96 . . 87 . . . . . . . . . . . . . . . . . Melee 113 | . . . . . . . . . 5 . . 33 . . . 23 . . . 10 . . 6 . . 6 . . . . . . 1 . 29 . Knockbacks 7 | . . . . . 3 . . . 1 . . . . . . . . . . . . . 1 . . . 1 . . . . . . . 1 . Impact 7 | . . . . . 3 . . . 1 . . . . . . . . . . . . . 1 . . . 1 . . . . . . . 1 . Kinetic . | . . . . . . . . . . . . . . . . . . . . . . . . . . . . . . . . . . . . . Secondary . | . . . . . . . . . . . . . . . . . . . . . . . . . . . . . . . . . . . . . Self-Inflicted Damage 228 | . . . 60 21 . . . . . . . . . . . 114 . . 33 . . . . . . . . . . . . . . . . . Shots 7 | . . . 2 1 . . . . . . . . . . . 3 . . 1 . . . . . . . . . . . . . . . . . Rammed 19 | 1 . . . . . . . . 5 . . . . . . . . . 1 2 . . 3 . . 1 2 . . . . . 3 . 1 . Targets Rammed 20 | 1 . . . . . . . . 6 . . . . . . . . . 1 2 . . 3 . . 1 2 . . . . . 3 . 1 . Kicked . | . . . . . . . . . . . . . . . . . . . . . . . . . . . . . . . . . . . . . Crushed 1 | . . . . . . . . . 1 . . . . . . . . . . . . . . . . . . . . . . . . . . . Highest Temperature 513 | . 261 54 267 48 108 137 40 54 309 . 116 9 6 156 288 291 346 378 346 253 323 251 254 92 . 220 . 171 99 157 258 258 513 132 138 118 Average Temperature 76 | . 56 20 61 24 36 64 9 17 92 . 49 5 6 70 158 143 114 97 108 76 156 113 102 22 . 99 . 52 44 51 79 54 100 57 63 37 Received Heat Transfer 3410 | . 357 . 255 . 60 99 81 126 198 . . . 24 18 84 393 9 129 28 85 370 . 28 5 . . 18 28 8 18 32 16 621 20 300 . Effects 15 | . . . . . . . . . 3 . . . . . . . . 2 2 . 2 . . . . . . . . . . 3 3 . . . Shutdowns 2 | . . . . . . . . . . . . . . . . . . 1 . . . . . . . . . . . . . . 1 . . . Energy Bleed 1 | . . . . . . . . . . . . . . . . . . . . . 1 . . . . . . . . . . . . . . . Interference 10 | . . . . . . . . . 3 . . . . . . . . . 2 . 1 . . . . . . . . . . 3 1 . . . Matter Decay 2 | . . . . . . . . . . . . . . . . . . 1 . . . . . . . . . . . . . . 1 . . . Siege Activations 112 | . . . . . . . . . . . . . . . . . . . . . 1 . . 7 2 . 1 4 3 15 1 11 21 23 11 12 Total Turns 2889 | . . . . . . . . . . . . . . . . . . . . . 38 . . 58 12 . 12 142 40 293 32 369 487 445 728 233 Longest Duration 549 | . . . . . . . . . . . . . . . . . . . . . 38 . . 26 11 . 12 109 25 48 32 75 73 85 549 50 Robots Corrupted 1 | . . . . . . . . . . . . . . . . . . . . . . . . . . . . . . . . . . . . 1 Combat Hostiles 1 | . . . . . . . . . . . . . . . . . . . . . . . . . . . . . . . . . . . . 1 Parts Fried 15 | . . . 9 . . . . . . . . . . . . . . . . 1 . . . . . . 1 . . . . . . . . 4 Impact Corruptions 8 | . . . . . 2 . . . 1 . . . . . . . . . . 1 . . 1 . . 1 . . . . . . 1 . 1 . Robots Melted 1 | . . . . . . . . . . . . . . . . . . . . . . . . . . . . . . . . 1 . . . . Combat Hostiles 1 | . . . . . . . . . . . . . . . . . . . . . . . . . . . . . . . . 1 . . . . Parts Melted 16 | . 2 . . . . . . . . . . 4 . . . . . . 1 1 . . . . . . 1 . . . . 5 . 1 . 1 Heat Transferred 4212 | . 1490 270 1305 . . . . . . . . . . . . . . . 150 100 . . . . . . . . . . . 70 . . . 827 Parts Sabotaged . | . . . . . . . . . . . . . . . . . . . . . . . . . . . . . . . . . . . . . Parts Stolen . | . . . . . . . . . . . . . . . . . . . . . . . . . . . . . . . . . . . . . Parts Stripped . | . . . . . . . . . . . . . . . . . . . . . . . . . . . . . . . . . . . . . Power Chain Reactions 12 | . . . 11 1 . . . . . . . . . . . . . . . . . . . . . . . . . . . . . . . . Missiles Intercepted 17 | . . . . . . . . . . . . . . . . . . . . . . . . . . . . . . . . . . . 17 . Alert | -11 -10 -10 -9 -9 -9 -8 -8 -8 -7 -7 -7 -7 -6 -6 -6 -6 -6 -5 -5 -5 -5 -5 -5 -4 -4 -4 -4 -3 -3 -3 -2 -2 -2 -1 -1 -1 ------- Run | Jun Mat Min Mat Min Exi Min Mat Sto Fac Low Low Dat Pro Fac Low Low Zio Pro Fac Ext Cet Arc Hub Fac Upp Upp War Pro Res Tes Res Qua Sec Acc Com Ac0 Peak Influence 1218 | . 210 89 707 289 . 223 328 616 340 . . . . 442 . . . . 588 500 512 216 113 391 . . . . 383 397 352 393 1218 997 687 . Initial 702 | . . 64 1 275 . . 20 138 149 . . . . 318 . . . . 181 246 48 204 5 55 . . . . 225 215 56 198 220 702 584 . Average 262 | . 106 32 228 218 . 91 104 279 143 . . . . 195 . . . . 177 310 325 198 45 123 . . . . 297 228 171 188 588 656 541 . Maximum Alert Level 4 | . 1 . 3 1 . 1 1 2 1 . . . . 2 . . . . 2 2 2 1 . 1 . . . . 1 1 1 1 4 3 3 . Low Security (%) 42 | 100 95 100 69 33 . 91 80 26 65 . . . . 49 . . . . 77 19 17 8 100 86 . . . . . 27 58 47 3 . . . Level 1 28 | . 4 . 3 66 . 8 19 54 34 . . . . 44 . . . . 14 52 41 91 . 13 . . . . 100 72 41 52 27 13 1 . Level 2 13 | . . . 25 . . . . 18 . . . . . 5 . . . . 8 27 40 . . . . . . . . . . . 35 32 26 . Level 3 13 | . . . 1 . . . . . . . . . . . . . . . . . . . . . . . . . . . . . 23 54 71 . Level 4 . | . . . . . . . . . . . . . . . . . . . . . . . . . . . . . . . . . 9 . . . Level 5 . | . . . . . . . . . . . . . . . . . . . . . . . . . . . . . . . . . . . . . High Security . | . . . . . . . . . . . . . . . . . . . . . . . . . . . . . . . . . . . . . Max Security . | . . . . . . . . . . . . . . . . . . . . . . . . . . . . . . . . . . . . . Squads Dispatched 109 | . 6 . 6 . . . 6 6 20 . . . . 2 . . . . 4 1 . . 1 6 . . . 1 1 8 1 9 18 11 2 . Investigation 16 | . 3 . 4 . . . 1 . 2 . . . . 1 . . . . 1 1 . . . 1 . . . . . . . . 2 . . . Extermination 31 | . . . . . . . . . 6 . . . . 1 . . . . 1 . . . . 2 . . . . . 4 . 6 5 4 2 . Reinforcement 27 | . 3 . 1 . . . . 2 7 . . . . . . . . . 2 . . . 1 3 . . . . 1 2 1 . 4 . . . Assault 6 | . . . 1 . . . . . . . . . . . . . . . . . . . . . . . . 1 . . . . 4 . . . Garrison 18 | . . . . . . . 5 4 5 . . . . . . . . . . . . . . . . . . . . . . . . 4 . . Intercept 11 | . . . . . . . . . . . . . . . . . . . . . . . . . . . . . . 2 . 3 3 3 . . Searches Triggered 1 | . . . . . . . . . . . . . . 1 . . . . . . . . . . . . . . . . . . . . . . Construction Impeded 2 | . . . . . . . . . 1 . . . . . . . . . 1 . . . . . . . . . . . . . . . . . Haulers Reinforced 2 | . . . . . . . . . . . . . . . . . . . 1 . . . . . . . . . . 1 . . . . . . Active Scanning Responses . | . . . . . . . . . . . . . . . . . . . . . . . . . . . . . . . . . . . . . Cargo Convoy Interrupts 1 | . . . . . . . . . 1 . . . . . . . . . . . . . . . . . . . . . . . . . . . Stealth | -11 -10 -10 -9 -9 -9 -8 -8 -8 -7 -7 -7 -7 -6 -6 -6 -6 -6 -5 -5 -5 -5 -5 -5 -4 -4 -4 -4 -3 -3 -3 -2 -2 -2 -1 -1 -1 --------- Run | Jun Mat Min Mat Min Exi Min Mat Sto Fac Low Low Dat Pro Fac Low Low Zio Pro Fac Ext Cet Arc Hub Fac Upp Upp War Pro Res Tes Res Qua Sec Acc Com Ac0 Distress Signals 60 | . 2 . 1 . . . . 1 6 . . . . 1 . . . . 2 2 2 . . 1 . . 3 . 1 7 1 2 6 2 20 . Communications Jammed . | . . . . . . . . . . . . . . . . . . . . . . . . . . . . . . . . . . . . . Distress Signals . | . . . . . . . . . . . . . . . . . . . . . . . . . . . . . . . . . . . . . Times Spotted 685 | . 30 1 43 . 28 12 20 31 30 4 3 4 6 7 9 11 5 15 27 23 24 . 6 16 5 . 29 27 7 28 14 17 89 45 28 41 Peak Tracking Total 13 | . 3 2 4 . 8 4 4 5 6 4 1 4 3 3 7 5 2 4 9 5 8 . 5 4 2 . 13 10 2 3 8 4 8 5 4 4 Tactical Retreats 30 | . . . 4 . 7 1 1 1 3 . . . . . 2 . 2 1 2 . . . . 1 . . 1 3 . . . . 1 . . . Traps | -11 -10 -10 -9 -9 -9 -8 -8 -8 -7 -7 -7 -7 -6 -6 -6 -6 -6 -5 -5 -5 -5 -5 -5 -4 -4 -4 -4 -3 -3 -3 -2 -2 -2 -1 -1 -1 ------- Run | Jun Mat Min Mat Min Exi Min Mat Sto Fac Low Low Dat Pro Fac Low Low Zio Pro Fac Ext Cet Arc Hub Fac Upp Upp War Pro Res Tes Res Qua Sec Acc Com Ac0 Traps Triggered 14 | . 1 . 2 . . . . . 3 . . . . 2 . . . . . 1 . . . . . . . . . . . . 2 1 2 . Indirectly . | . . . . . . . . . . . . . . . . . . . . . . . . . . . . . . . . . . . . . Trap Hack Attempts . | . . . . . . . . . . . . . . . . . . . . . . . . . . . . . . . . . . . . . Triggered . | . . . . . . . . . . . . . . . . . . . . . . . . . . . . . . . . . . . . . Disarmed . | . . . . . . . . . . . . . . . . . . . . . . . . . . . . . . . . . . . . . Reprogrammed . | . . . . . . . . . . . . . . . . . . . . . . . . . . . . . . . . . . . . . Reused 3 | . . . . . 3 . . . . . . . . . . . . . . . . . . . . . . . . . . . . . . . Traps Extracted . | . . . . . . . . . . . . . . . . . . . . . . . . . . . . . . . . . . . . . Installed 3 | . . . . . 3 . . . . . . . . . . . . . . . . . . . . . . . . . . . . . . . Triggered 18 | . . . . . . . . . 1 . 3 . . . . 3 . . . . . . . . 2 . 8 1 . . . . . . . . Most Traps Carried 4 | . . 4 4 3 3 . . . . . . . . . . . . . . . . . . . . . . . . . . . . . . . Machines | -11 -10 -10 -9 -9 -9 -8 -8 -8 -7 -7 -7 -7 -6 -6 -6 -6 -6 -5 -5 -5 -5 -5 -5 -4 -4 -4 -4 -3 -3 -3 -2 -2 -2 -1 -1 -1 ---------- Run | Jun Mat Min Mat Min Exi Min Mat Sto Fac Low Low Dat Pro Fac Low Low Zio Pro Fac Ext Cet Arc Hub Fac Upp Upp War Pro Res Tes Res Qua Sec Acc Com Ac0 Machines Disabled 91 | . . . 2 . 20 . . 3 . . . . . . . . 1 . 4 3 2 . 1 6 . . . 1 1 11 3 6 17 2 4 4 Max in Single Turn 3 | . . . 1 . 2 . . 1 . . . . . . . . 1 . 3 2 1 . 1 3 . . . 1 1 1 1 2 1 1 1 1 Garrison Access 2 | . . . . . . . . . . . . . . . . . . . 1 . . . . . . . . . . . . . 1 . . . Network Hub 2 | . . . . . . . . . . . . . . . . . . . . . . . 2 . . . . . . . . . . . . . Energy Cycler 1 | . . . . . . . . . . . . . . . . . . . . 1 . . . . . . . . . . . . . . . . Machines Repaired . | . . . . . . . . . . . . . . . . . . . . . . . . . . . . . . . . . . . . . Machines Sabotaged . | . . . . . . . . . . . . . . . . . . . . . . . . . . . . . . . . . . . . . Overloaded Fab Kills . | . . . . . . . . . . . . . . . . . . . . . . . . . . . . . . . . . . . . . Hacking | -11 -10 -10 -9 -9 -9 -8 -8 -8 -7 -7 -7 -7 -6 -6 -6 -6 -6 -5 -5 -5 -5 -5 -5 -4 -4 -4 -4 -3 -3 -3 -2 -2 -2 -1 -1 -1 --------- Run | Jun Mat Min Mat Min Exi Min Mat Sto Fac Low Low Dat Pro Fac Low Low Zio Pro Fac Ext Cet Arc Hub Fac Upp Upp War Pro Res Tes Res Qua Sec Acc Com Ac0 Machines Accessed 105 | . 7 1 11 1 1 . 1 11 8 . . 4 . 4 . 1 . . 5 6 . . 1 6 . 2 1 . . 5 1 9 10 6 3 . Terminals 71 | . 5 1 8 . . . . 9 8 . . . . 3 . . . . 2 5 . . 1 3 . . . . . 4 1 6 7 5 3 . Fabricators 3 | . . . . . . . . . . . . . . 1 . . . . 1 . . . . 1 . . . . . . . . . . . . Repair Stations 10 | . . . 2 . . . . 2 . . . . . . . . . . . 1 . . . 2 . . . . . 1 . 2 . . . . Recycling Units 3 | . 2 . 1 . . . . . . . . . . . . . . . . . . . . . . . . . . . . . . . . . Scanalyzers 5 | . . . . . . . . . . . . . . . . . . . 1 . . . . . . . . . . . . 1 2 1 . . Garrison Access 3 | . . . . . . . 1 . . . . . . . . . . . 1 . . . . . . . . . . . . . 1 . . . Total Hacks 417 | . 16 2 33 1 4 . 3 35 21 . . 27 . 19 . 6 . . 16 33 . . 5 30 . 7 4 . . 26 11 34 48 16 20 . Successful 239 | . 6 1 19 1 4 . 1 24 10 . . 27 . 9 . 6 . . 11 18 . . 3 14 . 7 4 . . 14 4 19 18 12 7 . Failed 177 | . 10 1 13 . . . 2 11 11 . . . . 10 . . . . 5 15 . . 2 16 . . . . . 12 7 15 30 4 13 . Catastrophic 27 | . . . 2 . . . . . 1 . . . . 1 . . . . 1 2 . . 1 2 . . . . . 3 2 2 8 . 2 . Database Lockouts 1 | . . . 1 . . . . . . . . . . . . . . . . . . . . . . . . . . . . . . . . . Manual 181 | . 15 2 20 . . . . 18 11 . . . . 11 . . . . 3 9 1 . 4 19 . . 1 . . 5 4 15 24 1 18 . Terminals 295 | . 14 2 28 . . . . 27 21 . . . . 13 . . . . 6 27 . . 5 18 . . . . . 20 11 27 43 13 20 . Fabricators 17 | . . . . . . . . . . . . . . 6 . . . . 5 . . . . 6 . . . . . . . . . . . . Repair Stations 36 | . . . 4 . . . . 8 . . . . . . . . . . . 6 . . . 6 . . . . . 6 . 6 . . . . Recycling Units 3 | . 2 . 1 . . . . . . . . . . . . . . . . . . . . . . . . . . . . . . . . . Scanalyzers 12 | . . . . . . . . . . . . . . . . . . . 4 . . . . . . . . . . . . 1 4 3 . . Garrison Access 5 | . . . . . . . 3 . . . . . . . . . . . 1 . . . . . . . . . . . . . 1 . . . Terminal Hacks 144 | . 2 . 9 1 4 . . 13 6 . . 27 . 4 . 6 . . 1 11 . . 2 2 . 7 4 . . 8 3 6 14 9 5 . Record 28 | . . . . . 4 . . . . . . 11 . . . 6 . . . . . . . . . 6 . . . 1 . . . . . . Part Schematic 15 | . . . . . . . . . 1 . . 10 . 2 . . . . . 2 . . . . . . . . . . . . . . . . Robot Schematic 3 | . . . . . . . . . . . . 3 . . . . . . . . . . . . . . . . . . . . . . . . Robot Analysis 4 | . 1 . 1 . . . . 2 . . . . . . . . . . . . . . . . . . . . . . . . . . . . Prototype ID Bank 10 | . . . 1 . . . . . . . . 3 . . . . . . . . . . . . . . 4 . . . 1 1 . . . . Open Door 11 | . . . . 1 . . . 2 . . . . . . . . . . . 1 . . . . . 1 . . . . . . 2 3 1 . Level Access Points 1 | . . . . . . . . . . . . . . . . . . . . . . . 1 . . . . . . . . . . . . . Branch Access Points 6 | . . . . . . . . 1 1 . . . . 1 . . . . 1 . . . . 1 . . . . . . 1 . . . . . Terminal Index 3 | . . . 1 . . . . 1 1 . . . . . . . . . . . . . . . . . . . . . . . . . . . Repair Station Index 2 | . . . . . . . . 1 1 . . . . . . . . . . . . . . . . . . . . . . . . . . . Scanalyzer Index 1 | . . . . . . . . 1 . . . . . . . . . . . . . . . . . . . . . . . . . . . . Alert Level 14 | . . . 1 . . . . 1 1 . . . . . . . . . . 1 . . 1 . . . . . . . 1 3 3 1 1 . Unreport Threat 22 | . . . 1 . . . . 3 1 . . . . 1 . . . . . 2 . . . . . . . . . 2 . . 6 4 2 . Locate Traps 5 | . 1 . 1 . . . . . . . . . . . . . . . . 1 . . . . . . . . . 2 . . . . . . Security Status 1 | . . . . . . . . . . . . . . . . . . . . 1 . . . . . . . . . . . . . . . . Patrol Status 1 | . . . . . . . . . . . . . . . . . . . . . . . . . . . . . . . . 1 . . . . Recall Investigation 1 | . . . . . . . . . . . . . . . . . . . . 1 . . . . . . . . . . . . . . . . Recall Extermination 1 | . . . . . . . . . . . . . . . . . . . . . . . . . . . . . . 1 . . . . . . Recall Assault 1 | . . . . . . . . . . . . . . . . . . . . 1 . . . . . . . . . . . . . . . . Hauler Manifests 4 | . . . . . . . . 1 . . . . . . . . . . . 1 . . . . . . . . . 1 . . 1 . . . Zone Layout 10 | . . . 3 . . . . . . . . . . . . . . . . . . . . 1 . . . . . 1 . 1 2 1 1 . Fabricator Hacks 7 | . . . . . . . . . . . . . . 2 . . . . 3 . . . . 2 . . . . . . . . . . . . Load Schematic 4 | . . . . . . . . . . . . . . 1 . . . . 2 . . . . 1 . . . . . . . . . . . . Build 3 | . . . . . . . . . . . . . . 1 . . . . 1 . . . . 1 . . . . . . . . . . . . Repair Station Hacks 27 | . . . 4 . . . . 7 . . . . . . . . . . . 4 . . . 5 . . . . . 3 . 4 . . . . Scan Component 16 | . . . 2 . . . . 4 . . . . . . . . . . . 3 . . . 3 . . . . . 2 . 2 . . . . Repair 11 | . . . 2 . . . . 3 . . . . . . . . . . . 1 . . . 2 . . . . . 1 . 2 . . . . Recycling Unit Hacks . | . . . . . . . . . . . . . . . . . . . . . . . . . . . . . . . . . . . . . Scanalyzer 8 | . . . . . . . . . . . . . . . . . . . 4 . . . . . . . . . . . . 1 1 2 . . Insert Component 6 | . . . . . . . . . . . . . . . . . . . 2 . . . . . . . . . . . . 1 1 2 . . Analyze 2 | . . . . . . . . . . . . . . . . . . . 2 . . . . . . . . . . . . . . . . . Garrison Access Hacks 3 | . . . . . . . 1 . . . . . . . . . . . 1 . . . . . . . . . . . . . 1 . . . Unlock Access 1 | . . . . . . . 1 . . . . . . . . . . . . . . . . . . . . . . . . . . . . . Seal Access 2 | . . . . . . . . . . . . . . . . . . . 1 . . . . . . . . . . . . . 1 . . . Unauthorized Hacks 50 | . 4 1 6 . . . . 4 4 . . . . 3 . . . . 2 3 . . 1 5 . . . . . 3 1 8 2 1 2 . Terminals 42 | . 2 1 5 . . . . 4 4 . . . . 2 . . . . . 3 . . 1 3 . . . . . 3 1 8 2 1 2 . Track 1 | . . . . . . . . . 1 . . . . . . . . . . . . . . . . . . . . . . . . . . . Assimilate 2 | . . . . . . . . . . . . . . . . . . . . . . . . . . . . . . . . 2 . . . . Botnet 37 | . 2 1 5 . . . . 4 3 . . . . 2 . . . . . 2 . . 1 3 . . . . . 3 1 5 2 1 2 . Detonate 1 | . . . . . . . . . . . . . . . . . . . . . . . . . . . . . . . . 1 . . . . Operators 1 | . . . . . . . . . . . . . . . . . . . . 1 . . . . . . . . . . . . . . . . Fabricators 5 | . . . . . . . . . . . . . . 1 . . . . 2 . . . . 2 . . . . . . . . . . . . Prioritize 3 | . . . . . . . . . . . . . . 1 . . . . 1 . . . . 1 . . . . . . . . . . . . Haulers 2 | . . . . . . . . . . . . . . . . . . . 1 . . . . 1 . . . . . . . . . . . . Repair Stations . | . . . . . . . . . . . . . . . . . . . . . . . . . . . . . . . . . . . . . Recycling Units 3 | . 2 . 1 . . . . . . . . . . . . . . . . . . . . . . . . . . . . . . . . . Tunnel 3 | . 2 . 1 . . . . . . . . . . . . . . . . . . . . . . . . . . . . . . . . . Scanalyzers . | . . . . . . . . . . . . . . . . . . . . . . . . . . . . . . . . . . . . . Garrison Access . | . . . . . . . . . . . . . . . . . . . . . . . . . . . . . . . . . . . . . Data Cores Recovered 1 | . . . . . . . . . . . . . . . . . . . . . . . 1 . . . . . . . . . . . . . Used . | . . . . . . . . . . . . . . . . . . . . . . . . . . . . . . . . . . . . . Hacking Detections 69 | . 4 1 9 . . . 1 8 8 . . . . 4 . . . . 4 6 . . 1 4 . . . . . 3 1 6 5 2 2 . Full Trace Events 10 | . 1 . 1 . . . 1 . 1 . . . . 1 . . . . 1 1 . . . 1 . . . . . . . . 2 . . . Feedback Events 1 | . . . . . . . . . 1 . . . . . . . . . . . . . . . . . . . . . . . . . . . Corruption 1 | . . . . . . . . . 1 . . . . . . . . . . . . . . . . . . . . . . . . . . . Feedback Blocked . | . . . . . . . . . . . . . . . . . . . . . . . . . . . . . . . . . . . . . Robot Schematics Acquired 6 | . . . . . . . . . . . . 3 . . . . 3 . . . . . . . . . . . . . . . . . . . Robots Built . | . . . . . . . . . . . . . . . . . . . . . . . . . . . . . . . . . . . . . Authchips . | . . . . . . . . . . . . . . . . . . . . . . . . . . . . . . . . . . . . . Time . | . . . . . . . . . . . . . . . . . . . . . . . . . . . . . . . . . . . . . Total Robot Build Rating . | . . . . . . . . . . . . . . . . . . . . . . . . . . . . . . . . . . . . . Part Schematics Acquired 32 | . . . . . . . . . 1 . . 10 . 2 . . 15 . 2 2 . . . . . . . . . . . . . . . . Parts Built 5 | . . . . . . . . . . . . . . 2 . . . . 2 . . . . 1 . . . . . . . . . . . . Authchips . | . . . . . . . . . . . . . . . . . . . . . . . . . . . . . . . . . . . . . Time 160 | . . . . . . . . . . . . . . 26 . . . . 58 . . . . 76 . . . . . . . . . . . . Total Part Build Rating 31 | . . . . . . . . . . . . . . 12 . . . . 14 . . . . 5 . . . . . . . . . . . . Parts Repaired 11 | . . . 2 . . . . 3 . . . . . . . . . . . 1 . . . 2 . . . . . 1 . 2 . . . . Time 759 | . . . 64 . . . . 144 . . . . . . . . . . . 30 . . . 235 . . . . . 136 . 150 . . . . Parts Recycled . | . . . . . . . . . . . . . . . . . . . . . . . . . . . . . . . . . . . . . Recycled Matter . | . . . . . . . . . . . . . . . . . . . . . . . . . . . . . . . . . . . . . Retrieved Matter . | . . . . . . . . . . . . . . . . . . . . . . . . . . . . . . . . . . . . . Retrieved Components . | . . . . . . . . . . . . . . . . . . . . . . . . . . . . . . . . . . . . . Parts Scanalyzed 2 | . . . . . . . . . . . . . . . . . . . 2 . . . . . . . . . . . . . . . . . Part Schematics Acquired 2 | . . . . . . . . . . . . . . . . . . . 2 . . . . . . . . . . . . . . . . . Parts Damaged . | . . . . . . . . . . . . . . . . . . . . . . . . . . . . . . . . . . . . . Bothacking | -11 -10 -10 -9 -9 -9 -8 -8 -8 -7 -7 -7 -7 -6 -6 -6 -6 -6 -5 -5 -5 -5 -5 -5 -4 -4 -4 -4 -3 -3 -3 -2 -2 -2 -1 -1 -1 ------------ Run | Jun Mat Min Mat Min Exi Min Mat Sto Fac Low Low Dat Pro Fac Low Low Zio Pro Fac Ext Cet Arc Hub Fac Upp Upp War Pro Res Tes Res Qua Sec Acc Com Ac0 Used RIF Installer . | . . . . . . . . . . . . . . . . . . . . . . . . . . . . . . . . . . . . . Robots Hacked 1 | . . . . . . . . . . . . 1 . . . . . . . . . . . . . . . . . . . . . . . . Non-combat . | . . . . . . . . . . . . . . . . . . . . . . . . . . . . . . . . . . . . . Combat 1 | . . . . . . . . . . . . 1 . . . . . . . . . . . . . . . . . . . . . . . . Robot Hacks Applied 1 | . . . . . . . . . . . . 1 . . . . . . . . . . . . . . . . . . . . . . . . parse_system 1 | . . . . . . . . . . . . 1 . . . . . . . . . . . . . . . . . . . . . . . . Relay Couplers Released 8 | . . . . . . . . . . . . . . . . . . . . . . . . . . . . . . 4 . . 4 . . . Programmers 8 | . . . . . . . . . . . . . . . . . . . . . . . . . . . . . . 4 . . 4 . . . Fabnet Peak Effective % . | . . . . . . . . . . . . . . . . . . . . . . . . . . . . . . . . . . . . . Robots Rewired 11 | . . . . . . . . . . . . . . . . . . . . 4 . . . . . . 5 2 . . . . . . . . Allies Hacked 2 | . . . . . . . . . . . . . . . . . . . . . . . . . . . . . . 1 . 1 . . . . Hacks Repelled 1 | . . . . . . . . . . . . . . . . . . . . . . . . . . . . . . 1 . . . . . . Allies | -11 -10 -10 -9 -9 -9 -8 -8 -8 -7 -7 -7 -7 -6 -6 -6 -6 -6 -5 -5 -5 -5 -5 -5 -4 -4 -4 -4 -3 -3 -3 -2 -2 -2 -1 -1 -1 -------- Run | Jun Mat Min Mat Min Exi Min Mat Sto Fac Low Low Dat Pro Fac Low Low Zio Pro Fac Ext Cet Arc Hub Fac Upp Upp War Pro Res Tes Res Qua Sec Acc Com Ac0 Total Allies 31 | . . . . . . . . 10 3 . . . . . . . . . . 5 5 . . . . . 5 2 . . . 1 . . . . Largest Group 10 | . . . . . . . . 10 4 . . . . . . . . . . 5 5 5 5 . . . 5 3 3 1 . 1 . . . . Highest-Rated Group 480 | . . . . . . . . 173 93 . . . . . . . . . . 250 480 480 480 . . . 269 176 176 65 . 26 . . . . Highest-Rated Ally 159 | . . . . . . . . 29 31 . . . . . . . . . . 159 137 96 96 . . . 65 65 65 65 . 26 . . . . Total Orders 158 | . . . . . . 5 . . 19 1 4 . 5 5 2 5 2 8 12 4 4 1 5 6 1 2 11 6 . 18 1 9 15 7 . . STAY 13 | . . . . . . . . . . . . . . . . . 1 . . . 1 . 2 1 . . 2 2 . 1 . 1 1 1 . . ROAM 1 | . . . . . . . . . . . . . . . . . . . . . . . . . . . . . . . . 1 . . . . FOLLOW 10 | . . . . . . 1 . . 1 . . . . . . . 1 . . . 1 . . . . . 1 2 . 1 . 1 1 . . . AID 1 | . . . . . . . . . . . . . . . . . . . . . . . . . . . 1 . . . . . . . . . EXPLORE 42 | . . . . . . 3 . . 6 1 . . 2 1 2 1 . 3 1 2 . . 1 . 1 1 3 1 . 5 . 3 5 . . . RETURN 91 | . . . . . . 1 . . 12 . 4 . 3 4 . 4 . 5 11 2 2 1 2 5 . 1 4 1 . 11 1 3 8 6 . . Ally Attacks 233 | . . . . . . . . 74 36 . . . . . . . . . . 68 20 . 3 . . . 28 . 4 . . . . . . . Total Damage 6254 | . . . . . . . . 1062 500 . . . . . . . . . . 2098 1120 . 93 . . . 1248 . 133 . . . . . . . Kills 45 | . . . . . . . . 11 7 . . . . . . . . . . 13 8 . 1 . . . 5 . . . . . . . . . Allies Corrupted 4 | . . . . . . . . . . . . . . . . . . . . . . . 4 . . . . . . . . . . . . . Allies Melted 2 | . . . . . . . . . . . . . . . . . . . . 1 . . . . . . . . . . 1 . . . . . Intel | -11 -10 -10 -9 -9 -9 -8 -8 -8 -7 -7 -7 -7 -6 -6 -6 -6 -6 -5 -5 -5 -5 -5 -5 -4 -4 -4 -4 -3 -3 -3 -2 -2 -2 -1 -1 -1 ------- Run | Jun Mat Min Mat Min Exi Min Mat Sto Fac Low Low Dat Pro Fac Low Low Zio Pro Fac Ext Cet Arc Hub Fac Upp Upp War Pro Res Tes Res Qua Sec Acc Com Ac0 Robot Analysis Total 138 | . 1 . 1 . . . . 2 . . . 134 . . . . . . . . . . . . . . . . . . . . . . . . Derelict Logs Recovered 15 | . . 2 . 2 . . . . . 2 2 . 1 . . 1 1 2 . . . . . . . 2 . . . . . . . . . . Drone Launches 166 | . . . . . . 3 . . 20 2 5 1 8 6 4 5 2 6 12 4 1 1 4 7 1 2 2 2 1 20 2 14 15 16 . . Drone Recoveries 150 | . . . . . . 3 . . 17 1 6 . 7 7 2 5 2 6 11 3 2 1 3 7 . 2 2 2 1 20 1 12 14 13 . . Exploration | -11 -10 -10 -9 -9 -9 -8 -8 -8 -7 -7 -7 -7 -6 -6 -6 -6 -6 -5 -5 -5 -5 -5 -5 -4 -4 -4 -4 -3 -3 -3 -2 -2 -2 -1 -1 -1 ------------- Run | Jun Mat Min Mat Min Exi Min Mat Sto Fac Low Low Dat Pro Fac Low Low Zio Pro Fac Ext Cet Arc Hub Fac Upp Upp War Pro Res Tes Res Qua Sec Acc Com Ac0 Turns Passed 48540 | 62 1547 1034 2512 605 1412 633 793 1596 2471 915 1790 504 1174 798 1328 1201 3087 1586 1644 1555 654 436 250 1168 833 828 1262 929 391 1721 745 2304 2410 1700 3886 776 Spaces Moved 16889 | 45 931 626 1066 310 518 271 307 592 791 352 591 159 437 242 458 426 1148 561 535 537 196 44 91 371 313 318 422 268 120 444 264 648 661 414 1240 172 Core 34 | 25 . . . . . . . . . . . . . . . . . . . . . . . . . . . . . . . . . . . 9 Treads 12220 | . 4 . . . 2 . . . 791 352 591 159 437 242 458 426 1148 561 535 537 196 44 91 371 313 318 422 268 120 444 264 648 661 414 1240 163 Legs . | . . . . . . . . . . . . . . . . . . . . . . . . . . . . . . . . . . . . . Wheels 4635 | 20 927 626 1066 310 516 271 307 592 . . . . . . . . . . . . . . . . . . . . . . . . . . . . Hover . | . . . . . . . . . . . . . . . . . . . . . . . . . . . . . . . . . . . . . Flight . | . . . . . . . . . . . . . . . . . . . . . . . . . . . . . . . . . . . . . Fastest Speed 50 | 50 100 145 115 190 175 190 190 190 242 245 245 245 247 247 246 246 246 247 245 245 160 240 240 240 240 240 240 240 240 240 227 227 227 227 227 50 Average Speed 220 | 85 121 158 189 190 191 199 192 194 242 245 245 245 247 247 246 247 246 247 245 245 193 240 240 240 240 240 240 240 240 240 233 227 227 227 227 217 Slowest Speed 330 | 250 160 175 190 190 320 205 205 205 245 245 245 247 247 247 247 330 247 247 247 245 245 240 240 240 240 240 240 240 240 240 240 227 227 227 227 227 Overloaded Moves . | . . . . . . . . . . . . . . . . . . . . . . . . . . . . . . . . . . . . . Propulsion Burnouts . | . . . . . . . . . . . . . . . . . . . . . . . . . . . . . . . . . . . . . Robots Hopped . | . . . . . . . . . . . . . . . . . . . . . . . . . . . . . . . . . . . . . Cave-ins Triggered . | . . . . . . . . . . . . . . . . . . . . . . . . . . . . . . . . . . . . . Teleports 2 | . . . . . . . . . . . . . . . . . . . . . . . . . . . . . . . . . . . 1 1 Exploration Rate (%) 56 | 4 97 87 84 81 73 94 25 95 29 64 70 81 73 10 74 69 85 82 20 84 56 60 24 11 54 45 86 67 4 80 16 82 62 14 36 19 Regions Visited 36 Branch Regions 26 Pre-discovered Areas 27 | . 2 . 1 1 1 . . . . . . 21 1 . . . . . . . . . . . . . . . . . . . . . . . Known Exits Taken 20 | . . . . . . . 1 . 1 1 1 1 1 1 1 . 1 1 1 . . . 1 1 1 1 . 1 1 . 1 1 1 . . . Unknown Exits Taken 16 | 1 1 1 1 1 1 1 . 1 . . . . . . . 1 . . . 1 1 1 . . . . 1 . . 1 . . . 1 1 . Scrap Searched 33 | . . 2 . 3 . 1 . . . 2 2 . 1 . 8 3 5 3 . . . . . . . 2 . 1 . . . . . . . . Spaces Dug 170 | . . . . . 7 . . 12 11 23 9 . . 9 . 3 . 1 3 . . . . 16 13 16 . 33 . 4 3 2 5 . . . Terrain Destroyed 858 | . . . 50 4 32 31 . 12 11 36 17 3 17 12 4 52 6 24 41 1 12 3 6 43 20 24 5 101 4 32 10 43 125 24 31 22 Melee 20 | . . . . . . . . . 5 1 4 . . 6 . 3 . 1 . . . . . . . . . . . . . . . . . . Projectile 485 | . . . . . 24 11 . . . 4 8 2 2 5 3 3 4 3 12 . 11 3 6 43 19 24 5 101 4 29 10 42 82 12 8 5 AOE 266 | . . . 50 4 6 20 . 12 6 29 . . 15 . . 46 . 19 26 1 . . . . . . . . . . . . 32 . . . Terrain Rammed . | . . . . . . . . . . . . . . . . . . . . . . . . . . . . . . . . . . . . . Walls Destroyed . | . . . . . . . . . . . . . . . . . . . . . . . . . . . . . . . . . . . . . Machines Disabled . | . . . . . . . . . . . . . . . . . . . . . . . . . . . . . . . . . . . . . Actions | -11 -10 -10 -9 -9 -9 -8 -8 -8 -7 -7 -7 -7 -6 -6 -6 -6 -6 -5 -5 -5 -5 -5 -5 -4 -4 -4 -4 -3 -3 -3 -2 -2 -2 -1 -1 -1 --------- Run | Jun Mat Min Mat Min Exi Min Mat Sto Fac Low Low Dat Pro Fac Low Low Zio Pro Fac Ext Cet Arc Hub Fac Upp Upp War Pro Res Tes Res Qua Sec Acc Com Ac0 Total 25187 | 65 1189 652 1450 323 710 324 468 971 1249 392 874 224 509 382 612 513 1347 686 733 688 387 372 104 569 375 365 655 471 205 979 345 1356 1223 914 2107 399 Wait 5361 | 12 117 4 206 2 59 23 74 282 300 26 242 13 46 81 123 43 128 76 64 75 85 324 5 136 52 34 166 146 69 399 31 591 279 321 639 88 Move 16854 | 45 930 625 1065 309 517 270 306 591 790 351 590 158 436 241 457 425 1147 560 534 536 195 43 90 370 312 317 422 267 119 443 263 647 660 413 1239 171 Hop . | . . . . . . . . . . . . . . . . . . . . . . . . . . . . . . . . . . . . . Pick Up 284 | 2 24 6 52 3 17 3 13 9 12 . . 7 3 4 4 1 5 1 11 1 13 . . 4 1 1 3 . 2 9 3 7 19 13 21 10 Fast Attach 116 | 6 3 . 10 2 . 3 . 5 5 . . 1 . . . 1 3 . . 4 7 2 . 1 . 2 4 . . 6 1 11 12 4 19 4 Attach 89 | . 1 . 4 . 12 1 3 . 2 . . 3 . 2 3 1 . 2 3 . 8 . . 4 . . 2 . 2 3 3 . 4 4 12 10 Detach 3 | . . . . . . . . . . . . . . . . . . . . . . . . . . . 1 . . . 1 . . . 1 . Swap 502 | . 12 3 12 . 15 7 13 4 35 5 8 11 4 13 4 13 25 13 41 5 18 1 . 18 . . 7 13 . 30 8 29 59 38 29 9 Drop 322 | . 16 4 43 5 9 . 15 12 20 . . 6 3 3 1 . 7 . 17 5 23 1 . 1 1 3 9 . 1 21 5 17 23 11 31 9 Fire 1535 | . 86 10 58 2 78 17 44 68 73 9 30 15 17 28 20 25 31 33 62 40 38 1 6 35 9 7 8 38 12 68 30 54 164 110 111 98 Melee 32 | . . . . . . . . . 6 1 4 10 . 6 . 4 . 1 . . . . . . . . . . . . . . . . . . Ram . | . . . . . . . . . . . . . . . . . . . . . . . . . . . . . . . . . . . . . Kick . | . . . . . . . . . . . . . . . . . . . . . . . . . . . . . . . . . . . . . Crush 18 | . . . . . . . . . 6 . . . . . . . . . 1 2 . . 3 . . 1 1 . . . . . 3 . 1 . Escape Stasis 10 | . . . . . . . . . . . . . . 4 . . . . . 2 . . . . . . . . . . . . . . 4 . Rewire 58 | . . . . . . . . . . . . . . . . . 1 . . 18 . . . . . . 32 7 . . . . . . . . Trap 3 | . . . . . 3 . . . . . . . . . . . . . . . . . . . . . . . . . . . . . . . Miscellaneous . | . . . . . . . . . . . . . . . . . . . . . . . . . . . . . . . . . . . . . Route ------- -11/Junkyard -10/Materials (discovered 5 exits: *Mat x3 / *Min / [*Sub]) -10/Mines (discovered 2 exits: *Mat x2) -9/Materials (discovered 3 exits: *Mat x2 / *Min) -9/Mines (discovered 2 exits: *Mat / *Exi) -9/Exiles -8/Mines -8/Materials (discovered 2 exits: *Sto / Gar) -8/Storage (discovered 2 exits: *Fac / Rec) -7/Factory (discovered 3 exits: *Fac / *Low x2) -7/Lower Caves -7/Lower Caves (discovered 2 exits: *Fac / *Dat) -7/Data Miner -6/Proximity Caves -6/Factory (discovered 4 exits: *Fac x2 / *Low x2) -6/Lower Caves -6/Lower Caves (discovered 2 exits: *Fac / [*Zio]) -6/Zion -5/Proximity Caves -5/Factory (discovered 7 exits: *Fac x3 / *Upp x2 / *Ext x2) -5/Extension (discovered 3 exits: *Fac x2 / *Cet) -5/Cetus (discovered 2 exits: *Fac / [*Arc]) -5/Archives -5/Hub_04(d) (discovered 4 exits: *Fac x4) -4/Factory (discovered 3 exits: *Upp x2 / Arm) -4/Upper Caves -4/Upper Caves -4/Warlord -3/Proximity Caves -3/Research -3/Testing -2/Research (discovered 2 exits: *Qua x2) -2/Quarantine -2/Section 7 -1/Access -1/Command (discovered 3 exits: [*Sur x2] / [*Ac0]) -1/Access_0 Near Former Tau Ceti IV History --------- Turn | Location | Event 28 | -11/Junkyard | Discovered new exit (range 15) 63 | -11/Junkyard | Entered Materials 543 | -10/Materials | Discovered new exit (range 14) 764 | -10/Materials | Build established: Mutant 833 | -10/Materials | Discovered new exit (range 11) 1066 | -10/Materials | Discovered new exit (range 10) 1144 | -10/Materials | Discovered new exit (range 16) 1272 | -10/Materials | Discovered new exit (range 8) 1610 | -10/Materials | Entered Mines 1706 | -10/Mines | Discovered new exit (range 10) 1725 | -10/Mines | Joined a pair of Derelicts in attacking an 0b10 outpost 1785 | -10/Mines | Learned Materials stockpile data 2025 | -10/Mines | Found a hidden stash of uninstalled traps 2121 | -10/Mines | Discovered new exit (range 14) 2146 | -10/Mines | Learned 2 Materials zone layouts 2644 | -10/Mines | Entered Materials 2644 | -9/Materials | Evolved 2 slots: Utility x1, Weapon x1 2934 | -9/Materials | Build established: Tank 2993 | -9/Materials | Central database locked down 3399 | -9/Materials | Repaired Huge Storage Unit 3559 | -9/Materials | Discovered new exit (range 15) 3711 | -9/Materials | Repaired Imp. Heat Sink 4120 | -9/Materials | Discovered new exit (range 16) 5044 | -9/Materials | First assault squad dispatched 5134 | -9/Materials | Discovered new exit (range 13) 5156 | -9/Materials | Entered Mines 5349 | -9/Mines | Learned location of Zion (-6) 5416 | -9/Mines | Found the Drone Emporium 5435 | -9/Mines | Found Prototype Device 5435 | -9/Mines | Identified Sensor Drone Bay 5569 | -9/Mines | Learned location of 1 exit from Materials 5639 | -9/Mines | Discovered new exit (range 9) 5751 | -9/Mines | Deemed a non-threat by the Exiles lab entrance 5753 | -9/Mines | Discovered new exit (range 5) 5761 | -9/Mines | Entered Exiles 5807 | -9/Exiles | Met 8R-AWN 5839 | -9/Exiles | Met EX-HEX 5887 | -9/Exiles | Warned about trapping Exiles lab 5951 | -9/Exiles | Met EX-DEC 6146 | -9/Exiles | Attacked by the Exiles 6214 | -9/Exiles | Lost 3 parts (3w) 6246 | -9/Exiles | Core integrity fell below 50% 6356 | -9/Exiles | Lost 6 parts (1p1n2u2w) 6405 | -9/Exiles | Found Prototype Ballistic Gun 6412 | -9/Exiles | Found Prototype Ballistic Gun 6431 | -9/Exiles | Found Prototype Device 6434 | -9/Exiles | Identified AS-neutralizer No. 17b 6438 | -9/Exiles | Identified 8R-AWN's Boregun (x2) 6686 | -9/Exiles | Destroyed EX-DEC 6718 | -9/Exiles | Destroyed EX-HEX 6816 | -9/Exiles | Destroyed EX-BIN 7071 | -9/Exiles | Build established: Mutant 7155 | -9/Exiles | Discovered new exit (range 10) 7173 | -9/Exiles | Entered Mines 7331 | -8/Mines | Core integrity fell below 20% 7474 | -8/Mines | Build established: Tank 7627 | -8/Mines | Discovered new exit (range 35) 7806 | -8/Mines | Entered Materials 7806 | -8/Materials | Evolved 2 slots: Utility x2 7807 | -8/Materials | Identified exit to Storage 8062 | -8/Materials | Identified exit to Garrison 8152 | -8/Materials | Garrison activated, responded to threat 8497 | -8/Materials | Garrison activated, responded to threat 8599 | -8/Materials | Entered Storage 8618 | -8/Storage | Identified exit to Recycling 8703 | -8/Storage | Repaired Hrd. Medium Armor Plating 8994 | -8/Storage | Garrison activated, responded to threat 9259 | -8/Storage | Garrison activated, responded to threat 9326 | -8/Storage | Assisted by bots powering up and referring to "LRC-V3" 9455 | -8/Storage | Repaired Adv. Weapon Cycler 9503 | -8/Storage | Repaired Hrd. Medium Armor Plating 9638 | -8/Storage | Build established: Commander-Gunner 10158 | -8/Storage | Discovered new exit (range 16) 10195 | -8/Storage | Entered Factory 10195 | -7/Factory | Accompanied by 4 allies 10195 | -7/Factory | Evolved 2 slots: Propulsion x2 10807 | -7/Factory | Build established: Scavenger-Gunner 10846 | -7/Factory | Allied Derelicts emerged from ambush trap array 10952 | -7/Factory | Cargo convoy interrupted 11274 | -7/Factory | Discovered new exit (range 40) 11540 | -7/Factory | Garrison activated, responded to threat 11634 | -7/Factory | Destroyed 9 combat bots 11675 | -7/Factory | Identified exit to Factory 11976 | -7/Factory | Identified exit to Lower Caves 12533 | -7/Factory | Garrison activated, responded to threat 12666 | -7/Factory | Entered Lower Caves 12701 | -7/Lower Caves | Learned 4 Factory zone layouts 12884 | -7/Lower Caves | Spotted B-75 Beast 12973 | -7/Lower Caves | Identified exit to Lower Caves 13099 | -7/Lower Caves | Encountered a Warlord checkpoint 13130 | -7/Lower Caves | Build established: Scavenger-Mutant 13581 | -7/Lower Caves | Entered another Lower Caves area 13581 | -7/Lower Caves | Accompanied by 1 ally 13619 | -7/Lower Caves | Discovered exit to Factory (range 15) 14149 | -7/Lower Caves | Learned location of 1 exit from Factory 15345 | -7/Lower Caves | Discovered new exit (range 6) 15362 | -7/Lower Caves | Learned location of 1 exit from Lower Caves 15363 | -7/Lower Caves | Identified exit to Data Miner 15371 | -7/Lower Caves | Entered Data Miner 15374 | -7/Data Miner | Discovered new exit (range 6) 15436 | -7/Data Miner | Met Data Miner 15482 | -7/Data Miner | Learned location of Section 7 (-2) 15482 | -7/Data Miner | Acquired the access code to Warlord's prototype stash 15517 | -7/Data Miner | Received God Mode back door access code from Data Miner 15592 | -7/Data Miner | Destroyed Data Miner 15595 | -7/Data Miner | Interfaced with the Data Conduit 15788 | -7/Data Miner | Found Deep Network Scanner 15792 | -7/Data Miner | Found Quantum Router 15796 | -7/Data Miner | Found Ghost Barrier 15872 | -7/Data Miner | Identified exit to Proximity Caves 15875 | -7/Data Miner | Entered Proximity Caves 15875 | -6/Proximity Caves | Accompanied by 1 ally 15877 | -6/Proximity Caves | Spotter reported a threat 15878 | -6/Proximity Caves | Spotter reported a threat 16086 | -6/Proximity Caves | Build established: Scavenger-Gunner 16460 | -6/Proximity Caves | Spotted B-75 Beast 16777 | -6/Proximity Caves | Destroyed B-75 Beast 16998 | -6/Proximity Caves | Discovered exit to Factory (range 8) 17049 | -6/Proximity Caves | Entered Factory 17049 | -6/Factory | Accompanied by 1 ally 17049 | -6/Factory | Evolved 2 slots: Utility x1, Weapon x1 17050 | -6/Factory | Identified exit to Factory 17052 | -6/Factory | Loaded intel: 269 machine locations 17399 | -6/Factory | Search patrols dispatched 17493 | -6/Factory | Fabricated Arm. Medium Treads (x2) 17545 | -6/Factory | Identified exit to Lower Caves 17753 | -6/Factory | Build established: Hacker-Mutant 17833 | -6/Factory | Discovered exit to Factory (range 10) 17847 | -6/Factory | Entered Lower Caves 17848 | -6/Lower Caves | Identified exit to Lower Caves 18086 | -6/Lower Caves | Attracted the attention of an 0b10 outpost 18493 | -6/Lower Caves | Build established: Hacker-Gunner 18851 | -6/Lower Caves | Spotted B-75 Beast 19175 | -6/Lower Caves | Entered another Lower Caves area 19175 | -6/Lower Caves | Accompanied by 1 ally 19230 | -6/Lower Caves | Learned Factory non-interactive machine intel 19331 | -6/Lower Caves | Discovered exit to Factory (range 34) 19484 | -6/Lower Caves | Lost 3 parts (2n1u) 19490 | -6/Lower Caves | Destroyed 7 combat bots 19943 | -6/Lower Caves | Learned 8 Factory zone layouts 19943 | -6/Lower Caves | Learned Extension emergency access door positions 19943 | -6/Lower Caves | Learned Factory garrison access intel 20082 | -6/Lower Caves | Discovered new exit (range 15) 20192 | -6/Lower Caves | Build established: Hacker-Mutant 20376 | -6/Lower Caves | Entered Zion 20376 | -6/Zion | Accompanied by 1 ally 20628 | -6/Zion | Discovered new exit (range 15) 20663 | -6/Zion | Build established: Hacker-Gunner 21544 | -6/Zion | Learned location of 1 exit from Lower Caves 21584 | -6/Zion | Visited the Megawrench Repair Shop 21593 | -6/Zion | Megawrench repaired 12 parts 22986 | -6/Zion | Attacked by Zionites 23046 | -6/Zion | ME-RLN came to Zion's defense 23113 | -6/Zion | Destroyed Imprinter 23137 | -6/Zion | Extracted access codes from Imprinter's data core 23206 | -6/Zion | Destroyed ME-RLN 23216 | -6/Zion | Found System Mapper 23227 | -6/Zion | Found System Mapper 23234 | -6/Zion | Found Prototype Special Weapon 23234 | -6/Zion | Identified ME-RLN's Wand 23453 | -6/Zion | Identified exit to Proximity Caves 23463 | -6/Zion | Entered Proximity Caves 23463 | -5/Proximity Caves | Accompanied by 1 ally 23657 | -5/Proximity Caves | Spotter reported a threat 24995 | -5/Proximity Caves | Learned Factory terminal intel 25049 | -5/Proximity Caves | Entered Factory 25049 | -5/Factory | Evolved 2 slots: Power x1, Utility x1 25050 | -5/Factory | Identified exit to Factory 25052 | -5/Factory | Loaded intel: 222 machine locations 25053 | -5/Factory | Loaded intel: 171 non-interactive machine locations 25054 | -5/Factory | Loaded intel: 26 terminal locations 25055 | -5/Factory | Loaded intel: 3 garrison access locations 25094 | -5/Factory | Identified exit to Upper Caves 25094 | -5/Factory | Identified exit to Extension 25342 | -5/Factory | Build established: Hacker-Tank 25929 | -5/Factory | Fabricated Imp. Force Field (x2) 26583 | -5/Factory | Destroyed 7 combat bots 26693 | -5/Factory | Entered Extension 26693 | -5/Extension | Accompanied by 1 ally 26695 | -5/Extension | Loaded intel: 28 machine locations 26786 | -5/Extension | Rescued A7 26959 | -5/Extension | Repaired Enh. Autogun 27085 | -5/Extension | Energy Cycler disabled 27703 | -5/Extension | Spotted B-75 Beast 27722 | -5/Extension | Allies destroyed B-75 Beast 27755 | -5/Extension | Spotted B-75 Beast 27791 | -5/Extension | Destroyed B-75 Beast 27805 | -5/Extension | Discovered exit to Factory (range 15) 28036 | -5/Extension | Discovered new exit (range 87) 28037 | -5/Extension | Discovered exit to Factory (range 86) 28248 | -5/Extension | Entered Cetus 28248 | -5/Cetus | Accompanied by 2 allies (A7) 28249 | -5/Cetus | Loaded intel: 24 machine locations 28253 | -5/Cetus | Acquired a Cetus Manufacturing Module code from A7 28291 | -5/Cetus | Spotted Cetus Guard 28291 | -5/Cetus | Spotted Cetus Guard 28293 | -5/Cetus | Spotted Cetus Guard 28298 | -5/Cetus | Spotted Cetus Guard 28304 | -5/Cetus | Allies destroyed Cetus Guard 28324 | -5/Cetus | Destroyed Cetus Guard 28331 | -5/Cetus | Destroyed Cetus Guard 28362 | -5/Cetus | Destroyed Cetus Guard 28391 | -5/Cetus | Lost 3 parts (1n1u1w) 28394 | -5/Cetus | Extracted ID and sensor layout for unrecognized location from A7's data core 28446 | -5/Cetus | System corruption reached 10% 28500 | -5/Cetus | Started Cetus Manufacturing Module 28525 | -5/Cetus | Manufactured an Enhanced Grunt 28550 | -5/Cetus | Manufactured an Enhanced Grunt 28575 | -5/Cetus | Manufactured an Enhanced Grunt 28600 | -5/Cetus | Manufactured an Enhanced Grunt 28625 | -5/Cetus | Manufactured an Enhanced Grunt 28656 | -5/Cetus | Discovered new exit (range 15) 28706 | -5/Cetus | Spotted Cetus Guard 28707 | -5/Cetus | Spotted Cetus Guard 28714 | -5/Cetus | Spotted Cetus Guard 28718 | -5/Cetus | Spotted Cetus Guard 28727 | -5/Cetus | Destroyed Cetus Guard 28727 | -5/Cetus | Destroyed Cetus Guard 28741 | -5/Cetus | Destroyed Cetus Guard 28745 | -5/Cetus | Destroyed Cetus Guard 28763 | -5/Cetus | Discovered exit to Factory (range 15) 28797 | -5/Cetus | Met Revision 17 28902 | -5/Cetus | Entered Archives 28902 | -5/Archives | Accompanied by 5 allies 28903 | -5/Archives | Loaded intel: 8 machine locations 29234 | -5/Archives | Build established: Scavenger-Gunner 29283 | -5/Archives | Met Zhirov 29289 | -5/Archives | Reinforcements dispatched to Archives 29305 | -5/Archives | Discovered new exit (range 13) 29334 | -5/Archives | Reinforcements dispatched to Archives 29338 | -5/Archives | Entered Hub_04(d) 29338 | -5/Hub_04(d) | Accompanied by 5 allies 29339 | -5/Hub_04(d) | Loaded intel: 93 machine locations 29489 | -5/Hub_04(d) | Network Hub disabled 29493 | -5/Hub_04(d) | Network Hub disabled 29509 | -5/Hub_04(d) | Disrupted transfer network 29534 | -5/Hub_04(d) | Spotted Lightning 29536 | -5/Hub_04(d) | Spotted Lightning 29559 | -5/Hub_04(d) | Build established: Scavenger-Tank 29588 | -5/Hub_04(d) | Entered Factory 29588 | -4/Factory | Evolved 2 slots: Utility x2 29589 | -4/Factory | Loaded intel: 285 machine locations 29813 | -4/Factory | Repaired Broken Centrium Heavy Treads? 29879 | -4/Factory | Fabricated Exp. Targeting Computer? 30179 | -4/Factory | Identified exit to Upper Caves 30179 | -4/Factory | Identified exit to Armory 30363 | -4/Factory | Build established: Scavenger-Gunner 30439 | -4/Factory | Repaired Adv. KE Penetrator 30756 | -4/Factory | Entered Upper Caves 30910 | -4/Upper Caves | Attracted the attention of an 0b10 checkpoint 31530 | -4/Upper Caves | Discovered new exit (range 15) 31567 | -4/Upper Caves | Identified exit to Upper Caves 31589 | -4/Upper Caves | Entered another Upper Caves area 31589 | -4/Upper Caves | Accompanied by 1 ally 31590 | -4/Upper Caves | Identified exit to Warlord 31817 | -4/Upper Caves | Learned Research stockpile data 31817 | -4/Upper Caves | Learned Factory security intel 32236 | -4/Upper Caves | Learned 4 Research zone layouts 32260 | -4/Upper Caves | Learned Research garrison access intel 32417 | -4/Upper Caves | Entered Warlord 32417 | -4/Warlord | Accompanied by 1 ally 32497 | -4/Warlord | System corruption cleaned by Quarantine Array 33049 | -4/Warlord | Met Warlord 33070 | -4/Warlord | Opened Warlord's prototype stash 33074 | -4/Warlord | Warlord's base attacked by MAIN.C 33080 | -4/Warlord | Found Vortex Chain Reactor 33424 | -4/Warlord | Warlord forces counterattacked 33459 | -4/Warlord | Spotted Executioner 33464 | -4/Warlord | Destroyed Executioner 33492 | -4/Warlord | Found Exp. Core Analyzer 33502 | -4/Warlord | Spotted Striker 33514 | -4/Warlord | Found Prototype Device 33514 | -4/Warlord | Identified Adv. Kinecellerator 33600 | -4/Warlord | Spotted Executioner 33610 | -4/Warlord | Destroyed Executioner 33625 | -4/Warlord | Spotted Executioner 33645 | -4/Warlord | Discovered new exit (range 15) 33674 | -4/Warlord | Spotted Striker 33679 | -4/Warlord | Entered Proximity Caves 33679 | -3/Proximity Caves | Accompanied by 2 allies 34190 | -3/Proximity Caves | Attracted the attention of an 0b10 outpost 34307 | -3/Proximity Caves | Destroyed 8 combat bots 34449 | -3/Proximity Caves | Discovered new exit (range 22) 34602 | -3/Proximity Caves | Identified exit to Research 34608 | -3/Proximity Caves | Entered Research 34608 | -3/Research | Accompanied by 4 allies 34608 | -3/Research | Evolved 2 slots: Power x1, Utility x1 34611 | -3/Research | Loaded intel: 124 machine locations 34612 | -3/Research | Loaded intel: 4 garrison access locations 34842 | -3/Research | Discovered new exit (range 10) 34888 | -3/Research | Identified exit to Testing 34999 | -3/Research | Entered Testing 34999 | -3/Testing | Accompanied by 2 allies 35000 | -3/Testing | Loaded intel: 61 machine locations 35019 | -3/Testing | Found Prototype Device 35019 | -3/Testing | Identified AEGIS Remote Shield 35243 | -3/Testing | Repaired Broken Centrium Heavy Treads 36071 | -3/Testing | Found Exp. Weapon Cycler 36075 | -3/Testing | Found Zero-point Reactor 36120 | -3/Testing | Found Zero-point Reactor 36132 | -3/Testing | Found Exp. Phase Shifter 36153 | -3/Testing | Intercept squad dispatched 36162 | -3/Testing | Spotted Tracker 36168 | -3/Testing | Destroyed Tracker 36179 | -3/Testing | Spotted Combat Programmer 36189 | -3/Testing | Destroyed Combat Programmer 36640 | -3/Testing | System corruption reached 10% 36686 | -3/Testing | Discovered new exit (range 15) 36720 | -3/Testing | Entered Research 36720 | -2/Research | Warlord forces began assault on 0b10 36720 | -2/Research | Evolved 2 slots: Utility x1, Weapon x1 36721 | -2/Research | Loaded intel: 126 machine locations 36736 | -2/Research | Identified exit to Quarantine 36830 | -2/Research | Research machine network offline 36954 | -2/Research | Met up with Warlord 37122 | -2/Research | Spotted Striker 37124 | -2/Research | Spotted Striker 37130 | -2/Research | Spotted Striker 37130 | -2/Research | Destroyed Striker 37136 | -2/Research | Destroyed Striker 37143 | -2/Research | Destroyed Striker 37178 | -2/Research | Destroyed 9 combat bots 37222 | -2/Research | Spotted Executioner 37227 | -2/Research | Spotted Executioner 37230 | -2/Research | Destroyed Executioner 37397 | -2/Research | Borebot progress halted 37428 | -2/Research | Borebot progress halted 37465 | -2/Research | Entered Quarantine 37465 | -2/Quarantine | Accompanied by 1 ally 37466 | -2/Quarantine | Loaded intel: 92 machine locations 37498 | -2/Quarantine | Cryocooling Duct disabled 37513 | -2/Quarantine | Ambient heat levels rising (+20) 37513 | -2/Quarantine | Non-combat units ordered to evacuate 37662 | -2/Quarantine | Repaired Broken Centrium Heavy Treads 38197 | -2/Quarantine | Spotted Alpha 7 38219 | -2/Quarantine | Destroyed Alpha 7 38288 | -2/Quarantine | Found Prototype Ballistic Gun 38288 | -2/Quarantine | Identified Multirail 38321 | -2/Quarantine | Found Alien Artifact 38363 | -2/Quarantine | Identified Core Reset Matrix 38605 | -2/Quarantine | Repaired Hrd. Heavy Armor Plating 38826 | -2/Quarantine | Found Alien Artifact 39085 | -2/Quarantine | Found Alien Artifact 39417 | -2/Quarantine | Spotted Fortress 39441 | -2/Quarantine | Destroyed Fortress 39469 | -2/Quarantine | Found Vortex Chain Reactor 39473 | -2/Quarantine | Found Centrium Heavy Armor Plating 39492 | -2/Quarantine | Found Vortex Chain Reactor 39600 | -2/Quarantine | Intercept squad dispatched 39614 | -2/Quarantine | Spotted Tracker 39615 | -2/Quarantine | Spotted Tracker 39623 | -2/Quarantine | Destroyed Tracker 39631 | -2/Quarantine | Destroyed Tracker 39653 | -2/Quarantine | Spotted Combat Programmer 39656 | -2/Quarantine | Spotted Combat Programmer 39665 | -2/Quarantine | Destroyed Combat Programmer 39670 | -2/Quarantine | System corruption reached 10% 39673 | -2/Quarantine | Destroyed Combat Programmer 39756 | -2/Quarantine | Discovered new exit (range 5) 39767 | -2/Quarantine | Identified exit to Section 7 39769 | -2/Quarantine | Entered Section 7 39769 | -2/Section 7 | Accompanied by 1 ally 39770 | -2/Section 7 | Loaded intel: 156 machine locations 39775 | -2/Section 7 | Spotted S7 Guard 39809 | -2/Section 7 | Destroyed S7 Guard 39821 | -2/Section 7 | Found Prototype Protection 39821 | -2/Section 7 | Identified Hvy. Regenerative Plating 39847 | -2/Section 7 | Found Alien Artifact 40024 | -2/Section 7 | Identified Core Membrane 40024 | -2/Section 7 | Installed Core Membrane, gained immunity to corruption 40129 | -2/Section 7 | Found Alien Artifact 40130 | -2/Section 7 | Identified Integrity Redistributor 40130 | -2/Section 7 | Used Integrity Redistributor, redistributed integrity from core (-219) 40268 | -2/Section 7 | Found Alien Artifact 40269 | -2/Section 7 | Identified Integrated Reactor 40269 | -2/Section 7 | Installed Integrated Reactor, increased core energy generation (+10) 40399 | -2/Section 7 | Spotted S7 Guard 40406 | -2/Section 7 | Destroyed S7 Guard 40457 | -2/Section 7 | Found Alien Artifact 40633 | -2/Section 7 | Spotted S7 Guard 40660 | -2/Section 7 | Destroyed S7 Guard 40727 | -2/Section 7 | Found Alien Artifact 40769 | -2/Section 7 | First assault squad dispatched 40877 | -2/Section 7 | Intercept squad dispatched 40899 | -2/Section 7 | Spotted Tracker 40900 | -2/Section 7 | Spotted Tracker 40902 | -2/Section 7 | Destroyed Tracker 40913 | -2/Section 7 | Destroyed Tracker 40947 | -2/Section 7 | Spotted Combat Programmer 40950 | -2/Section 7 | Destroyed Combat Programmer 40951 | -2/Section 7 | Spotted Combat Programmer 40958 | -2/Section 7 | Destroyed Combat Programmer 41000 | -2/Section 7 | Spotted Executioner 41000 | -2/Section 7 | Spotted Executioner 41022 | -2/Section 7 | Destroyed Executioner 41028 | -2/Section 7 | Destroyed Executioner 41057 | -2/Section 7 | Found Exp. Targeting Computer 41061 | -2/Section 7 | Found Adv. Kinecellerator 41072 | -2/Section 7 | Found Exp. Targeting Computer 41208 | -2/Section 7 | Spotted B-99 Colossus 41226 | -2/Section 7 | Destroyed B-99 Colossus 41266 | -2/Section 7 | Found Multirail 41270 | -2/Section 7 | Found Multirail 41420 | -2/Section 7 | Found Alien Artifact 41420 | -2/Section 7 | Identified Integrated Dissipator 41420 | -2/Section 7 | Installed Integrated Dissipator, increased core heat dissipation (+20) 41424 | -2/Section 7 | Found Integrated Dissipator 41424 | -2/Section 7 | Installed Integrated Dissipator, increased core heat dissipation (+20) 41430 | -2/Section 7 | Found Integrated Dissipator 41430 | -2/Section 7 | Installed Integrated Dissipator, increased core heat dissipation (+20) 41513 | -2/Section 7 | Found Alien Artifact 41513 | -2/Section 7 | Identified LRC Insulator 41513 | -2/Section 7 | Installed LRC Insulator, gained EM resistance (25) 41722 | -2/Section 7 | Spotted Alpha 7 41722 | -2/Section 7 | Spotted Alpha 7 41736 | -2/Section 7 | Destroyed Alpha 7 41746 | -2/Section 7 | Destroyed Alpha 7 41824 | -2/Section 7 | Found Multirail 41827 | -2/Section 7 | Destroyed 15 combat bots 41837 | -2/Section 7 | Found Multirail 41931 | -2/Section 7 | Discovered new exit (range 28) 41935 | -2/Section 7 | Identified exit to Access 42179 | -2/Section 7 | Entered Access 42179 | -1/Access | Evolved 2 slots: Utility x1, Weapon x1 42180 | -1/Access | Loaded intel: 115 machine locations 42307 | -1/Access | Identified Core Regenerator 42307 | -1/Access | Identified Integrated Thermoelectric Network 42307 | -1/Access | Installed Integrated Thermoelectric Network, gained heat-energy exchange potential 42484 | -1/Access | Build established: Scavenger-Executioner 42893 | -1/Access | Garrison activated, responded to threat 42947 | -1/Access | Garrison activated, responded to threat 43286 | -1/Access | Intercept squad dispatched 43298 | -1/Access | Spotted Tracker 43298 | -1/Access | Spotted Tracker 43306 | -1/Access | Destroyed Tracker 43310 | -1/Access | Destroyed Tracker 43358 | -1/Access | Spotted Combat Programmer 43364 | -1/Access | Destroyed Combat Programmer 43364 | -1/Access | Spotted Combat Programmer 43375 | -1/Access | Destroyed Combat Programmer 43543 | -1/Access | Discovered new exit (range 7) 43692 | -1/Access | Spotted B-99 Colossus 43714 | -1/Access | Destroyed B-99 Colossus 43728 | -1/Access | Spotted B-99 Colossus 43751 | -1/Access | Destroyed B-99 Colossus 43788 | -1/Access | Found Multirail 43798 | -1/Access | Found Multirail 43834 | -1/Access | Found Multirail 43840 | -1/Access | Found Multirail 43879 | -1/Access | Entered Command 43880 | -1/Command | Loaded intel: 58 machine locations 44008 | -1/Command | Spotted B-99 Colossus 44023 | -1/Command | Destroyed B-99 Colossus 44042 | -1/Command | Found Multirail 44080 | -1/Command | Found Multirail 44126 | -1/Command | Destroyed Alpha 7 44225 | -1/Command | Spotted M Guard 44227 | -1/Command | Spotted Combat Programmer 44227 | -1/Command | Spotted Combat Programmer 44232 | -1/Command | Spotted M Guard 44237 | -1/Command | Destroyed Combat Programmer 44244 | -1/Command | Destroyed Combat Programmer 44258 | -1/Command | Destroyed M Guard 44284 | -1/Command | Destroyed M Guard 44284 | -1/Command | All MAIN.C guards destroyed 44332 | -1/Command | Found Zero-point Reactor 44337 | -1/Command | Found Zero-point Reactor 44351 | -1/Command | Found Exp. Targeting Computer 44360 | -1/Command | Found AEGIS Remote Shield 44366 | -1/Command | Found Exp. Targeting Computer 44381 | -1/Command | Found Zero-point Reactor 44420 | -1/Command | Found AEGIS Remote Shield 44739 | -1/Command | 0b10 Conduit disabled 44741 | -1/Command | Met MAIN.C 44766 | -1/Command | Destroyed MAIN.C Shell 44769 | -1/Command | MAIN.C activated Command garrisons 44794 | -1/Command | Destroyed MAIN.C 44817 | -1/Command | Identified Transdimensional Reconstructor 44817 | -1/Command | Identified Subatomic Replicator 44817 | -1/Command | Discovered new exit (range 40) 44817 | -1/Command | Discovered new exit (range 81) 44817 | -1/Command | Extracted map data and part IDs from MAIN.C's data core 45961 | -1/Command | Found Corrupted Multirail 45965 | -1/Command | Found Multirail 46027 | -1/Command | Found Exp. Core Analyzer 46504 | -1/Command | Found Corrupted Multirail 46511 | -1/Command | Found Corrupted Multirail 47325 | -1/Command | Found Null Cannon 47338 | -1/Command | Found Vortex Chain Reactor 47372 | -1/Command | Used Subatomic Replicator to replicate Hvy. Quantum Rifle 47755 | -1/Command | Warped through subspace to slip node 47755 | -1/Command | Discovered new exit (range 4) 47765 | -1/Command | Entered Access_0 47766 | -1/Access_0 | Loaded intel: 50 machine locations 47768 | -1/Access_0 | Met Architect 47776 | -1/Access_0 | Architect warped through subspace 47784 | -1/Access_0 | Destroyed A8 47848 | -1/Access_0 | Architect warped through subspace 47875 | -1/Access_0 | Subspace Access Node disabled 47919 | -1/Access_0 | Architect warped through subspace 47956 | -1/Access_0 | Spotted Enhanced Programmer 47963 | -1/Access_0 | Spotted Enhanced Programmer 47970 | -1/Access_0 | Destroyed Enhanced Programmer 47974 | -1/Access_0 | Architect warped through subspace 47982 | -1/Access_0 | Destroyed Enhanced Programmer 48017 | -1/Access_0 | Architect warped through subspace 48043 | -1/Access_0 | Found Exp. Weapon Cycler 48061 | -1/Access_0 | Architect warped through subspace 48074 | -1/Access_0 | Found Exp. Phase Shifter 48107 | -1/Access_0 | Architect warped through subspace 48110 | -1/Access_0 | Subspace Access Node disabled 48123 | -1/Access_0 | Spotted Enhanced Programmer 48135 | -1/Access_0 | Destroyed Enhanced Programmer 48151 | -1/Access_0 | Architect warped through subspace 48192 | -1/Access_0 | Architect warped through subspace 48210 | -1/Access_0 | Spotted Enhanced Programmer 48213 | -1/Access_0 | Spotted Enhanced Programmer 48215 | -1/Access_0 | A6 warped into view 48221 | -1/Access_0 | Destroyed A6 48227 | -1/Access_0 | Architect warped through subspace 48234 | -1/Access_0 | Destroyed Enhanced Programmer 48245 | -1/Access_0 | Destroyed Enhanced Programmer 48257 | -1/Access_0 | Found Corrupted Enh. Force Lance 48298 | -1/Access_0 | Architect warped through subspace 48315 | -1/Access_0 | Subspace Access Node disabled 48340 | -1/Access_0 | Architect warped through subspace 48374 | -1/Access_0 | Architect warped through subspace 48400 | -1/Access_0 | Architect warped through subspace 48411 | -1/Access_0 | Spotted Enhanced Programmer 48415 | -1/Access_0 | Destroyed Enhanced Programmer 48422 | -1/Access_0 | Architect warped through subspace 48431 | -1/Access_0 | Architect warped through subspace 48440 | -1/Access_0 | Spotted Enhanced Programmer 48448 | -1/Access_0 | Lost 4 parts (1u3w) 48451 | -1/Access_0 | Destroyed Enhanced Programmer 48455 | -1/Access_0 | Architect warped through subspace 48483 | -1/Access_0 | Subspace Access Node disabled 48485 | -1/Access_0 | Spotted Enhanced Programmer 48495 | -1/Access_0 | Destroyed Enhanced Programmer 48499 | -1/Access_0 | Spotted Enhanced Programmer 48511 | -1/Access_0 | Destroyed Enhanced Programmer 48521 | -1/Access_0 | Core integrity fell below 50% 48532 | -1/Access_0 | Destroyed Architect 48533 | -1/Access_0 | Architect triggered a singularity event 48535 | -1/Access_0 | Released all parts (21) 48535 | -1/Access_0 | Extracted unknown sensor trigger ID from Architect's data core 48536 | -1/Access_0 | Found Hpw. Transdimensional Reconstructor 48536 | -1/Access_0 | Warped through subspace to slip node 48536 | -1/Access_0 | Discovered new exit (range 8) 48541 | *** | Escaped singularity! Last Messages --------------- 48535_ Released Multirail. 48535_ Multirail crushed and broken. 48535_ Released Multirail. 48535_ Multirail crushed and broken. 48535_ Released Adv. Particle Charger. 48535_ Adv. Particle Charger crushed and broken. 48535_ Released Adv. Weapon Cycler. 48535_ Adv. Weapon Cycler crushed and broken. 48535_ Released Exp. Phase Shifter. 48535_ Exp. Phase Shifter crushed and broken. 48535_ Acquired data core, extracted unknown sensor trigger ID. 48536_ A0_COM: 8. 48536_ Acquired Hpw. Transdimensional Reconstructor. 48536_ Warped through subspace, drawn to slip node. 48536_ EXIT=FOUND 48537_ A0_COM: 7. 48538_ A0_COM: 6. 48539_ A0_COM: 5. 48540_ A0_COM: 4. 48541_ A0_COM: 3. Map ----- +----------------------------------------------------+ | | | | | | | | | | | | | | | | | | | | | | | | | | | | | | | | | ?????????????????????????????????????????????????? | | ?????????????????????????????????????????????????? | | ?????????????????????????????????????????????????? | | ?????????????????????????????????????????????????? | | ?????????????????????????????????????????????????? | | ?????????????????????????????????????????????????? | | ????????????????????????###??????????????????????? | | ???????????????????????## ##?????????????????????? | | ???????????????????????# #?????????????????????? | | ???????????????????????# @ #?????????????????????? | | ??????????????????????## #?????????????????????? | | ??????????????????????# #?????????????????????? | | ??????????????????????# ##?????????????????????? | | ??????????????????????## #?????????????????????? | | ??????????????????????# #?????????????????????? | | ??????????????????????# ##?????????????????????? | | ??????????????????????# < #?????????????????????? | | ??????????????????????# ##?????????????????????? | | ??????????????????????## #??????????????????????? | | ???????????????????????####??????????????????????? | | ?????????????????????????????????????????????????? | | ?????????????????????????????????????????????????? | | ?????????????????????????????????????????????????? | | ?????????????????????????????????????????????????? | | ?????????????????????????????????????????????????? | | ?????????????????????????????????????????????????? | | ?????????????????????????????????????????????????? | | ?????????????????????????????????????????????????? | | ?????????????????????????????????????????????????? | | ?????????????????????????????????????????????????? | | ?????????????????????????????????????????????????? | | ?????????????????????????????????????????????????? | | ?????????????????????????????????????????????????? | | ?????????????????????????????????????????????????? | +----------------------------------------------------+ Best States ------------- Heat Dissipation 150 Energy Generation 93 Energy Capacity 950 Matter Stores 300 Matter Capacity 300 Sight Range 16 Terrain Scan Density 10 Armor Coverage 1650 Resistance: KI 30 Resistance: TH 10 Resistance: EM 25 Point Defense Rating 240 Weapon Cycling 30 Phase Shifting 20 Evasion (%) 60 Targeting Accuracy 24 Core Analysis 8 Armor Integrity Analysis 40 Recoil Reduction 4 Matter Filtering 50 Particle Charging 25 Kinecelleration 50 Salvage Targeting 4 Offensive Hacking 40 Defensive Hacking 25 Item Schematics ----------------- Exp. Targeting Computer | -7/Factory | Hacked Combat Drone Bay | -7/Data Miner | Free Lgt. Regenerative Plating | -7/Data Miner | Free Cld. Aerolev Unit | -7/Data Miner | Free Thermal Defense Suite | -7/Data Miner | Free Antimatter Cannon | -7/Data Miner | Free Linear Gravjet | -7/Data Miner | Free Imp. Recalibrator | -7/Data Miner | Free Hvy. Shock Bomb Launcher | -7/Data Miner | Free Imp. Trap Scanner | -7/Data Miner | Free Arm. Medium Treads | -7/Data Miner | Free Imp. Force Field | -6/Factory | Hacked Core Analyzer | -6/Factory | Hacked Imp. Hardlight Generator | -6/Zion | Archive Disruptor Cannon | -6/Zion | Archive Imp. Component Analysis Suite | -6/Zion | Archive Remote Shield | -6/Zion | Archive Adv. Target Analyzer | -6/Zion | Archive Power Sword | -6/Zion | Archive Tesla Rifle | -6/Zion | Archive Plasma Rifle | -6/Zion | Archive Adv. Shield Generator | -6/Zion | Archive Imp. System Restoration Module | -6/Zion | Archive Imp. Kinecellerator | -6/Zion | Archive Adv. Heat Sink | -6/Zion | Archive Matter Neutralizer | -6/Zion | Archive Magnetic Acceleration Cannon | -6/Zion | Archive Imp. Weapon Cycler | -6/Zion | Archive Adv. Weapon Cycler | -5/Factory | Scanalyzed Enh. Autogun | -5/Factory | Scanalyzed Recoil Nullifier | -5/Extension | Hacked Nova Cannon | -5/Extension | Hacked Robot Schematics ------------------ A-15 Conveyor | -7/Data Miner | Free R-10 Processor | -7/Data Miner | Free G-50 Soldier | -7/Data Miner | Free B-48 Gladiator | -6/Zion | Archive A-02 Transporter | -6/Zion | Archive K-01 Serf | -6/Zion | Archive Fabricated ------------ Arm. Medium Treads | x2 | -6/Factory Imp. Force Field | x2 | -5/Factory Exp. Targeting Computer | x1 | -4/Factory Alien Tech Used ----------------- Core Membrane Integrity Redistributor Integrated Reactor Integrated Dissipator LRC Insulator Integrated Thermoelectric Network Subatomic Replicator Transdimensional Reconstructor High-powered Transdimensional Reconstructor Achievements -------------- None Challenges ------------ None Game ------ Seed MolecularSensorChip Manual? 0 Play Time 06:13:54 Cumulative 1846.9 hours Start 2023.11.27 @ 19:42:46 End 2023.12.02 @ 21:38:57 Sessions 5 Manual Loads 0 Difficulty Rogue Special Mode None Game No. 641 Rogue 641 Adventurer 0 Explorer 0 Win Type 6 Total 144 Types 29/13/64/7/1/2/26/1/1 Lore% 96 Gallery% 96 Achievement% 88 Wizard Run 0 Options --------- ASCII 0 Keyboard 0 Movement Numpad Keybinds 0 Fullscreen 2 Font 18/SmallcapsGlow Map View 76x50 Tactical HUD 1 Map Filters NONE Filters NONE Steam 1 RUN: 8f33d33e-eaa1-4311-ba93-f177cc8152dd